{"text_format":"1","workbook":"xlsx","n_sheets":6,"sheets":["INSTRUCCIONES","DATOS","EVALUACION","INFO CENTRO","PLAN DE MEDIDAS","BBDD"],"not_rendered":{"charts":0,"images":1,"macros":1,"external_links":0,"defined_names":19,"comments":0,"pivot_tables":0},"unopened":[],"bounds":{"document_bytes":16777216,"sheet_cells":100000,"rows_first":2000,"rows_last":500,"rows_between":2000,"halvings":0,"cell_chars":16384,"cell_head_chars":4096},"cells_cut":0,"cells_raw":0,"read":"whole","date_system":"1900"}

{"sheet":"INSTRUCCIONES","index":0,"n_rows":33,"n_cols":19,"rows_kept":33,"cut":false,"hidden":false,"merged":[[8,1,16,18],[32,2,34,16],[20,2,22,16],[24,2,26,16],[28,2,30,16]]}
[null,null,null,null,null,null,null,null,null,null,null,null,null,null,null,null,null,null,"                     METODOLOGÍAS SECTORIALES"]
[]
[]
[]
[]
[]
[]
[null,null,null,null,null,null,null,null,null,null,null,null,null,null,null,null,null,null,"Fecha de actualización: 24 de septiembre de 2021."]
[null,"La siguiente lista de verificación de medidas preventivas ha sido construida a partir de lo establecido en:\n- Protocolo de limpieza y desinfección de ambientes COVID-19 \n- Protocolo de manejo de contactos de casos COVID-19 – Fase 4 \n- Circular C37 Nº1, Protocolo de referencia para correcto uso de equipo de protección personal en pacientes sospechosos o confirmados de Covid-19, 18 marzo 2020. \n- Circular C37 Nº2, Racionalización del uso de equipos de protección personal (epp) en el contexto de la atención de pacientes durante la pandemia de Covid-19, 03 abril 2020. \n- Circular C37 Nº4, Sobre algunas medidas para la protección del personal de salud en el contexto de la atención en establecimientos de salud durante la pandemia de Covid-19, 21 abril 2020. \n- Circular C37 Nº10, Recomendaciones sobre aseo y desinfección de superficies ambientales para la prevención de infecciones asociadas a la atención en salud (IAAS), 6 diciembre 2018. \n- Circular C13 Nº9, Precauciones estándares para el control de infecciones en la atención en salud y algunas consideraciones sobre aislamiento de pacientes, 13 marzo 2013. \n- Norma General Técnica Nº199, Norma técnica sobre esterilización y desinfección de alto nivel y uso de artículos médicos estériles en establecimientos de atención de salud. \n"]
[]
[]
[]
[]
[]
[]
[]
[]
[]
[null,"PASOS A SEGUIR"]
[]
[null,null,"Se debe individualizar el centro de trabajo en que se aplicará esta lista de verificación. Acceder por medio del botón \"DATOS DEL CENTRO\", ubicado en la parte superior de esta hoja."]
[]
[]
[]
[null,null,"Seleccionadas las actividades, se debe acceder a las preguntas de evaluación por medio del botón \"LISTA DE EVALUACIÓN\". Se deben responder las preguntas de cada apartado, seleccionando \"SI\" cuando se ha implementado la totalidad de la medida evaluada, caso contrario se selecciona \"NO\". Si la pregunta de evaluación no se ajusta a la realizada del centro de trabajo se selecciona \"NO APLICA\""]
[]
[]
[]
[null,null,"Respondida la totalidad del cuestionario, se debe generar el \"PLAN DE MEDIDAS\" que se deben implementar, las cuales deben ser planificadas con la fecha máxima y el responsable de gestionar su implementación."]
[]
[]
[]
[null,null,"El plan de medida se apertura en un libro Excel independiente a esta planilla el cual se debe guardar en su equipo. Desde este último se puede acceder a la información de apoyo que se encuentra en la página web de la ACHS."]

{"sheet":"DATOS","index":1,"n_rows":35,"n_cols":19,"rows_kept":35,"cut":false,"hidden":false,"merged":[[33,11,33,12],[33,14,33,18],[23,1,23,2],[23,4,23,9],[23,11,23,12],[23,14,23,17],[26,1,26,4],[26,6,26,9],[26,11,26,14],[9,1,10,18],[30,11,31,18],[31,1,31,2],[31,4,31,5],[31,7,31,8],[15,1,15,6],[15,8,15,10],[18,1,18,6],[18,8,18,10],[18,12,18,14]]}
[null,"                     METODOLOGÍAS SECTORIALES"]
[]
[]
[]
[]
[]
[null,{"$f":"+IF(COUNTA(B16,I16,B19,I19,M19,E24,L24,G27,L27)=9,\"Avanza\",\"No avanza\")","v":"No avanza"}]
[null,"ESTABLECIMIENTOS DE ATENCIÓN DE SALUD EVALUADO"]
[]
[null,"A continuación debe ingresar la información que individualiza el establecimiento de salud donde se aplica la presente pauta de evaluación. Se debe considerar que los registros marcados con asteriscos (*) son obligatorios para poder continuar."]
[]
[]
[null,"Entidad empleadora"]
[]
[null,"Razón Social*",null,null,null,null,null,null,"RUT Empresa*"]
[]
[]
[null,"Responsable de aplicación*",null,null,null,null,null,null,"Cargo*",null,null,null,"Correo electrónico*"]
[]
[]
[null,"Dirección del establecimiento"]
[]
[null,"Tipo de calle",null,null,"Dirección*",null,null,null,null,null,null,"Número*",null,null,"Resto de la dirección"]
[]
[]
[null,"Localidad",null,null,null,null,"Región*",{"$f":"+SUBSTITUTE($G$27,\" \",\"_\")","v":""},null,null,null,"Comuna*"]
[]
[]
[null,"Trabajadores del establecimiento",null,null,null,null,null,null,null,null,null,"Principal actividad económica"]
[]
[null,"N° Total de trabajadores",null,null,"N° Trabajadores hombres",null,null,"N° Trabajadores mujeres",null,null,null,"Ingrese la principal actividad económica de la empresa, seleccionando desde los CIIU registrados por tu organización en el Servicio de Impuestos Internos (SII)."]
[]
[null,null,null,null,null,null,null,null,null,null,null,"CIIU",null,null,"Descripción del CIIU"]
[null,null,null,null,null,null,null,null,null,null,null,null,null,null,{"$f":"+IFERROR(VLOOKUP(L34,BBDD!$K$51:$L$724,2,FALSE),\"\")","v":""}]
[null,null,null,null,null,null,null,null,null,null,null,null,null,null,null,null,null,null,"*CIIU = Clasificación Internacional Industrial Uniforme"]

{"sheet":"EVALUACION","index":2,"n_rows":87,"n_cols":6,"rows_kept":87,"cut":false,"hidden":false,"merged":[[9,1,10,4]]}
[null,"                     METODOLOGÍAS SECTORIALES"]
[]
[]
[]
[]
[]
[]
[null,"LISTA DE EVALUACIÓN"]
[]
[null,"En la columna \"Evaluación\" del siguiente listado debes indicar si se cumple la medida indicada. Finalizado, debes generar el PLAN DE MEDIDAS por medio del botón ubicado al costado derecho de este texto. Considerar que las preguntas sin respuestas serán consideradas como no cumplidas."]
[]
[]
[null,"N°","TIPO","MEDIDA SEÑALADA POR LA AUTORIDAD","NORMA RELACIONADA","EVALUACIÓN"]
[null,"CERO"]
[null,"ORGANIZACIÓN Y RESPONSABILIDADES EN EL CENTRO"]
[null,"CERO"]
[null,1,"Medida obligatoria\nPASO A PASO LABORAL","Los trabajadores(as) desempeñan sus funciones, conforme se dispone por la autoridad sanitaria en la Estrategia Gradual “PASO A PASO” 2020 (cuarentena, transición, preparación, apertura inicial, apertura avanzada), respecto al lugar de procedencia del trabajador(a) y tipo de actividad que desarrolla la empresa.","Resolución Exenta N°644 de 14 de julio de 2021 del Ministerio de Salud y artículos 184 y 184 bis del Código del Trabajo."]
[null,"1.1","Medida obligatoria\nPASO A PASO LABORAL","Se cuenta, implementa y difunde el plan de ACCIONES PARA LA GESTIÓN PREVENTIVA DEL COVID-19","Paso a Paso Laboral: Etapa 2: \"Organiza y acuerda\".\nArt. 184 del Código del Trabajo."]
[null,"1.2","Medida obligatoria\nPASO A PASO LABORAL","Se constituye un EQUIPO DE TRABAJO para liderar las acciones para la gestión preventiva del COVID-19 con representatividad de trabajadores y empleadores","Paso a Paso Laboral: Etapa 2: \"Organiza y acuerda\".\nArt. 184 del Código del Trabajo."]
[null,"1.3","Medida obligatoria\nPASO A PASO LABORAL","Existe un RESPONSABLE de mantener los ELEMENTOS BÁSICOS DE HIGIENE y los EPP (elementos de protección personal) necesarios para el funcionamiento del centro, asegurando que sean accesibles a todos los trabajadores","Paso a Paso Laboral: Etapa 2: \"Organiza y acuerda\".\nArt. 184 del Código del Trabajo."]
[null,"CERO"]
[null,"MEDIDAS PREVENTIVAS APLICABLES AL CENTRO"]
[null,"CERO"]
[null,2,"Medida obligatoria\nPASO A PASO LABORAL","Al ingreso del establecimiento y de áreas comunes (comedores, cocinas, etc.) se dispone de medios para el lavado de manos o aplicación de solución de alcohol al 70%.","Art. 184 del Código del Trabajo."]
[null,3,"Medida obligatoria\nPASO A PASO LABORAL","Los lugares de trabajo se encuentran ventilados o, en su defecto, los sistemas de ventilación mecánica permiten el recambio de aire en el local (la extracción y su renovación).(los sistemas de aire acondicionado no constituyen un sistema de ventilación).","Art. 32 del D.. 594 de 1999 del Ministerio de Salud."]
[null,4,"Medida obligatoria\nPASO A PASO LABORAL","El empleador entrega y dispone de mascarillas para evitar la propagación del virus COVID-19.","Art. 68 ley N° 16.744 y numerales 19 y 22 de la Resolución Exenta N°644 de 14 de julio de 2021 del Ministerio de Salud."]
[null,5,"Medida obligatoria\nPASO A PASO LABORAL","Se indica claramente por medio de señalización visible y permanente la obligación de uso de mascarillas y las recomendaciones de autocuidado entre las personas que ingresan o permanecen al interior de la empresa, así como también, en el transporte privado de trabajadores(as) en caso de que este sea provisto por la empresa, ascensores o funiculares y espacios cerrados.\n\n(Excepciones al uso de mascarillas son: Trabajadores(as) que se encuentren solos en un espacio cerrado o con un máximo de dos personas, siempre que entre ellas exista una separación física que impida el contacto estrecho. Trabajadores(as) que estén comiendo en lugares especialmente habilitados para ello.)","Art. 37 inciso 4 del D.. 594 de 1999 del Ministerio de Salud; Resolución Exenta N°644 de 14 de julio de 2021 del Ministerio de Salud y art. 184, incisos 1° y 2°, del Código del Trabajo."]
[null,6,"Medida obligatoria\nPASO A PASO LABORAL","Se demarca visiblemente la distancia de un metro lineal entre cada persona en los lugares donde se forman filas (de ingreso/salida del lugar de trabajo, espera ingreso ascensor, líneas de proceso, atención de público, etc.).","Art. 37 inciso 4 del D.. 594 de 1999 del Ministerio de Salud; Resolución Exenta N°644 de 14 de julio de 2021 del Ministerio de Salud y art. 184, incisos 1° y 2°, del Código del Trabajo."]
[null,7,"Medida obligatoria\nPASO A PASO LABORAL","Se mantiene e indica claramente por medio de señalización visible y permanente la obligación de distanciamiento de, al menos, un metro lineal entre las personas (trabajadores(as) propios o contratistas, proveedores y clientes).\n\n(Se exceptúan de lo anterior: Personas que se encuentren en un medio de transporte. Trabajadores(as) que, por la naturaleza de las actividades laborales que realizan, no puedan cumplir con esta medida durante el ejercicio de sus labores. Trabajadores(as) entre los cuales exista una separación física que impida el contacto directo entre ellas.)","Art. 37 inciso 4 del D.. 594 de 1999 del Ministerio de Salud; Resolución Exenta N°644 de 14 de julio de 2021 del Ministerio de Salud y art. 184, incisos 1° y 2°, del Código del Trabajo."]
[null,8,"Medida obligatoria\nPASO A PASO LABORAL","Se adaptan los espacios y puestos de trabajo, de manera que sea posible mantener, al menos, un metro de distancia entre trabajadores(as) o, en su defecto, si por razones laborales no pueden cumplir con esta medida, se instalan barreras divisorias de material acrílico, policarbonato, vidrio u otro similar.De no ser posible adaptar las condiciones físicas, se debe utilizar escudo facial (Circular C37 Nº4 2020,Minsal). No aplicable a las excepciones previstas en el numeral 24 de la Resolución Exenta N°591 de 23 de julio de 2020 del Ministerio de Salud.","Art. 37 del D.. 594 de 1999 del Ministerio de Salud y art. 184 del Código del Trabajo, Circular C37 Nº4 2020, Minsal."]
[null,9,"Medida obligatoria\nPASO A PASO LABORAL","En los lugares que atiendan público, se disponen de los elementos necesarios para una adecuada higiene de manos para los usuarios.","Resolución Exenta N°644 de 14 de julio de 2021 del Ministerio de Salud."]
[null,10,"Medida obligatoria\nPASO A PASO LABORAL","La señalización y condiciones de la ruta de entrada y salida o vías de escape permanecen en buen estado y libre de obstrucciones.","Art. 37 del D.. 594 de 1999 del Ministerio de Salud y art. 184, incisos 1° y 2°, del Código del Trabajo."]
[null,11,"Medida obligatoria\nPASO A PASO LABORAL","Se revisó y actualizó, si fuese procedente, el plan de emergencia y evacuación existente del lugar de trabajo considerando la nueva distribución de los puestos de trabajo, el aforo reducido y las eventuales nuevas vías de acceso, circulación y zonas de seguridad, evitando aglomeraciones, así como las medidas preventivas de COVID-19 frente a otras emergencias.","Art. 184, incisos 1° y 2°, del Código del Trabajo y art. 37 del D.. 594 de 1999 del Ministerio de Salud e instructivo \"Evacuación en contexto Covid 19\", Minsal."]
[null,12,"Medida obligatoria\nPASO A PASO LABORAL","Los trabajadores(as) que realizan tareas de limpieza y desinfección fueron informados del procedimiento para la limpieza y desinfección, en el correcto uso y retiro de los elementos de protección personal, su desinfección o eliminación.","Art. 21 del D.. 40 de 1969 del Ministerio del Trabajo y Previsión Social."]
[null,13,"Medida obligatoria\nPASO A PASO LABORAL","Se limpian y desinfectan al menos una vez al día (a) todos los espacios, superficies y elementos expuestos al flujo de personas, ya sea de trabajadores(as) o clientes, (b) las herramientas y elementos de trabajo (y cada vez que sean intercambiadas) y (c) los espacios cerrados de uso comunitario, como comedores, baños, ascensores, etc.","Resolución Exenta N°644 de 14 de julio de 2021 del Ministerio de Salud."]
[null,14,"Medida obligatoria\nPASO A PASO LABORAL","Se entrega a los trabajadores(as) que realizan la limpieza y desinfección de los lugares de trabajo y espacios comunes, elementos de protección personal, conforme al Protocolo Modo Covid de Vida, tales como: \n• Guantes desechables o reutilizables, que sean resistentes impermeables, manga larga (no quirúrgicos); \n• Mascarilla para evitar propagación del virus COVID-19.\n• Pechera desechable o reutilizable.\ny lo señalado en Circular C37 Nº10 del 2018, Minsal.","Resolución N°644 de 14 de julio de 2021 del Ministerio de Salud, Circular C37 Nº10 de 2018."]
[null,15,"Medida obligatoria\nPASO A PASO LABORAL","Los desinfectantes utilizados cuentan con registro del Instituto de Salud Pública (ISP).","Art. 37 del D.. 594 de 1999 del Ministerio de Salud y Protocolo Modo Covid de Vida, contenido en Resolución N°644 de 14 de julio de 2021, del Ministerio de Salud."]
[null,16,"Medida obligatoria\nPASO A PASO LABORAL","Se dispone de contenedores (basureros) para la disposición de los residuos (mascarillas desechables, papel de secado de mano, guantes desechables, entre otros) y éstos se encuentran ubicados en las áreas y lugares comunes del centro de trabajo.","Art. 184 del Código del Trabajo."]
[null,17,"Medida obligatoria\nPASO A PASO LABORAL","Las empresas externas de Aplicación de Desinfectantes de Venta Especializada, creadas específicamente para ese fin y que presten servicios a terceros, cuentan con resolución sanitaria de la Seremi de Salud.","Art. 184, incisos 1° y 2°, del Código del Trabajo; ORD. B.32/1313 del 20.04.2020 de la Subsecretaria de Salud Pública; art. 3 del DS 594 del Ministerio de Salud y art. 183- A del Código del Trabajo."]
[null,18,"Medida obligatoria\nPASO A PASO LABORAL","Se siguen las acciones determinadas por la autoridad sanitaria frente a situaciones relacionadas con casos sospechosos, contacto estrecho o casos confirmados de COVID-19 en los trabajadores(as) conforme al Protocolo de Actuación en el Lugar de Trabajo.","Art. 3º del D.. 594, de 1999, del Ministerio de Salud y art. 184, incisos 1° y 2°, del Código del Trabajo."]
[null,19,"Medida obligatoria\nPASO A PASO LABORAL","Se definen y socializan los CANALES O MEDIOS DE COMUNICACIÓN para la difusión constante y clara de las medidas de prevención y de control que deben conocer y aplicar los trabajadores","Art. 21 del D.. 40 de 1969 del Ministerio del Trabajo y Previsión Social y art. 184 inciso 1° del Código del Trabajo."]
[null,20,"Medida obligatoria\nPASO A PASO LABORAL","Se CAPACITA A TODOS LOS TRABAJADORES, donde se explique en qué consiste la enfermedad COVID-19, sus formas de transmisión, síntomas y las medidas de prevención y control que deben aplicar","Art. 21 del D.. 40 de 1969 del Ministerio del Trabajo y Previsión Social y art. 184 inciso 1° del Código del Trabajo."]
[null,21,"Medida obligatoria\nPASO A PASO LABORAL","Se lleva REGISTRO ACTUALIZADO de los trabajadores que han recibido la capacitación indicada en el punto anterior, considerando: nombre, cedula de identidad, cargo y firma","Art. 21 del D.. 40 de 1969 del Ministerio del Trabajo y Previsión Social y art. 184 inciso 1° del Código del Trabajo."]
[null,22,"Medida obligatoria\nPASO A PASO LABORAL","La empresa evaluó los riesgos asociados a contagio por COVID-19 (por ejemplo, a través de su Departamento de Prevención de Riesgos o con la asistencia de su organismo administrador del seguro de la ley N° 16.744) y consideró en esta evaluación los riesgos derivados de la interacción entre trabajadores(as) propios, contratistas y clientes.","Para empresa que no cuente con Depto. de Prevención de Riesgos: Art. 184, inciso 1° y 2º, del Código del Trabajo. Para empresa que cuente con Depto. de Prevención de Riesgos: Art. 66 inciso 4° de la ley N° 16.744 en relación con el art. 8 inciso 2º y art. 12 del D.. 40, de 1969, del Ministerio del Trabajo y Previsión Social y el art. 24 del D.. 54, de 1969, del Ministerio del Trabajo y Previsión Social."]
[null,23,"Medida obligatoria\nPASO A PASO LABORAL","En caso de contar con Comité Paritario de Higiene y Seguridad y/o Departamento de Prevención de Riesgos, éste cumple con las funciones de su competencia respecto a medidas preventivas relacionadas al contagio por COVID-19 y vigila el cumplimiento de las medidas de prevención, higiene y seguridad mediante labores permanentes.","Art. 24 del D.. 54, de 1969, del Ministerio del Trabajo y Previsión Social; art. 66 de la ley N° 16.744 en relación con el art. 8 inciso 2º y art. 12 del D.S. 40, de 1969, del Ministerio del Trabajo y Previsión Social."]
[null,24,"Medida obligatoria\nPASO A PASO LABORAL","Se actualiza el reglamento interno (de orden), higiene y seguridad de la empresa, incluyendo todas las medidas preventivas y de control asociadas al contexto COVID-19 exigidas por la normativa vigente.","Para empresas con menos de 10 trabajadores (as): Art. 14 y 16 del D.S. 40, de 1969, del Ministerio del Trabajo y Previsión Social. Para empresas con más de 10 trabajadores (as): Art. 153 y 154 del Código del Trabajo."]
[null,25,"Medida obligatoria\nPASO A PASO LABORAL","Existe coordinación entre la empresa principal y las empresas contratistas y subcontratistas con el objeto de dar cumplimiento a las normas de protección y prevención de COVID-19. Especial atención existirá respecto de:\n• Información entre las empresas en relación con los riesgos y medidas preventivas por COVID-19.\n• Contar con insumos básicos de higiene\n• Medidas administrativas preventivas para el distanciamiento físico o evitar aglomeraciones.","Art. 6 inciso 1° del D.. 76, de 2007, del Ministerio del Trabajo y Previsión Social en relación con el art. 66 bis de la ley N° 16.744 y art. 183-E del Código del Trabajo."]
[null,26,"Medida obligatoria\nPASO A PASO LABORAL","La empresa principal vigila el cumplimiento de las empresas contratistas y subcontratistas respecto de las normativas de seguridad y salud laboral que deben implementarse en la faena en materia de COVID-19, a partir de su Sistema de Gestión de Seguridad y Salud en el Trabajo, estableciendo los mecanismos para que las empresas contratistas y subcontratistas protejan de forma eficaz la vida y salud de los trabajadores(as).","Art. 9 Nº3 del D.. Nº76 de 2007, del Ministerio del Trabajo y Previsión Social en relación con el art. 66 bis de la ley N° 16.744 y el art. 183-E del Código del Trabajo."]
[null,27,"Medida obligatoria\nPASO A PASO LABORAL","Se incorporan medidas preventivas, procedimientos y protocolos en el reglamento especial para empresas contratistas y subcontratistas como parte del Sistema de Gestión de Seguridad y Salud en el Trabajo. En especial, que contenga las medidas para la prevención y control del riesgo de COVID-19, entre ellas: \n(a) los plazos en que éstas se ejecutarán y sus responsables; \n(b) las acciones de información y formación; \n(c) los procedimientos de control de los riesgos; \n(d) planes de emergencia y \n(e) la investigación de la enfermedad profesional por COVID-19.","Arts. 9, 11 y 13 Nº3 del D.. Nº76 de 2007 del Ministerio del Trabajo y Previsión Social."]
[null,"CERO"]
[null,"MEJORES PRACTICAS PARA UNA EFECTIVA PREVENCION EN LOS CENTROS DE TRABAJO"]
[null,"CERO"]
[null,"1_","Recomendación\nPASO A PASO LABORAL","En la implementación de las medidas preventivas, se garantiza la participación de los trabajadores(as), organizaciones sindicales, Comité Paritario de Higiene y Seguridad, Departamento de Prevención de Riesgos, si corresponde.","Recomendación - Sin normativa asociada"]
[null,"2_","Recomendación\nPASO A PASO LABORAL","Se solicita ayuda y asistencia técnica al organismo administrador del seguro de la ley N° 16.744 al que se encuentra afiliado el empleador para la implementación de las medidas preventivas.","Recomendación - Sin normativa asociada"]
[null,"3_","Recomendación\nACHS","Se promueve y refuerza el cumplimiento de medidas de autocuidado en el transporte público.","Recomendación - Sin normativa asociada"]
[null,"4_","Recomendación\nACHS","Existe un CONTROL DE ACCESO para tomar la temperatura corporal y efectuar el control del estado general de salud a todos los trabajadores y personas externas que ingresen al centro de trabajo, con el fin de impedir la entrada de personas con sospecha de contagio de COVID-19?","Recomendación - Sin normativa asociada"]
[null,"5_","Recomendación\nACHS","Se cumple con habilitar PEDILUVIOS SANITARIOS con desinfectante en el ingreso al lugar de trabajo","Recomendación - Sin normativa asociada"]
[null,"6_","Recomendación\nPASO A PASO LABORAL","Si se cuenta con dos o más accesos, se habilita uno de manera exclusiva para ingreso y otro de manera exclusiva para salida. Si se cuenta con un solo acceso, se demarca el sentido de circulación para ingreso y salida.","Recomendación - Sin normativa asociada"]
[null,"7_","Recomendación\nPASO A PASO LABORAL","Se desinfectan y limpian todos los bienes y/o mercaderías que ingresen a la empresa por terceros externos a la organización.","Recomendación - Sin normativa asociada"]
[null,"8_","Recomendación\nPASO A PASO LABORAL","Se demarca la capacidad máxima del uso de ascensores, garantizando el debido distanciamiento de al menos un metro entre las personas.","Recomendación - Sin normativa asociada"]
[null,"9_","Obligación","La ropa de trabajo es de uso personal y exclusiva para operar dentro de las instalaciones de la empresa y se lava diariamente.","Artículo 27 Decreto Supremo 594/1999, Minsal"]
[null,"10_","Recomendación\nPASO A PASO LABORAL","Los contenedores (basureros) del lugar de trabajo cuentan con tapa y una bolsa en su interior u otro material impermeable.","Recomendación - Sin normativa asociada"]
[null,"11_","Recomendación\nPASO A PASO LABORAL","En los lugares que atiendan público, se fomenta el pago sin contacto con tarjetas bancarias o con transferencias electrónicas y se resguarda el acceso preferencial a personas mayores de 60 años, embarazadas, personas con discapacidad y enfermos crónicos.","Recomendación - Sin normativa asociada"]
[null,"12_","Recomendación\nPASO A PASO LABORAL","En los lugares que atiendan público, y en caso de contar con sistema de audio, se anuncian de forma regular las medidas de autocuidado.","Recomendación - Sin normativa asociada"]
[null,"13_","Recomendación\nPASO A PASO LABORAL","Se fomenta el uso de vías telemáticas para la realización de reuniones y capacitaciones. En caso de no ser posible, se consideran aspectos higiénicos mínimos en su realización (reducir el número de participantes al mínimo posible, prohibir consumo de alimentos, conservar los datos personales de los participantes, etc.).","Recomendación - Sin normativa asociada"]
[null,"14_","Recomendación\nPASO A PASO LABORAL","Para fortalecer la información entregada a los trabajadores(as), se fija en lugares visibles de la empresa información resumida y concreta sobre las medidas de autocuidado y las medidas preventivas implementadas en la empresa.","Recomendación - Sin normativa asociada"]
[null,"CERO"]
[null,"ACTUALIZACIÓN PLAN DE EVACUACIÓN ANTE EMERGENCIAS"]
[null,"A"]
[null,"A.1- DEFINICIÓN DE RESPONSABILIDADES"]
[null,"A.1.1","PROTOCOLO","Se debe designar responsable/s de elaborar y definir las medidas de prevención que definen zonas seguras, flujos evacuación y retorno de personas (trabajadores y pacientes), movimiento y/o traslado de equipamiento, insumos, elementos de barrera y protección personal al momento de aplicar dispositivo sanitario (evacuación). Según lo señalado en instructivo \"Evacuación en contexto Covid 19\", Minsal. ","Instrucción contenida en instructivo \"Evacuación en contexto Covid 19\""]
[null,"A.1.2","PROTOCOLO","Se debe designar responsable/s de movilizar equipos y equipamiento crítico que se requiera.","Instrucción contenida en instructivo \"Evacuación en contexto Covid 19\""]
[null,"A.1.3","PROTOCOLO","Se debe designar un responsable de verificar el cumplimiento de las medidas de prevención ante COVID-19 durante la evacuación y posterior a ella, tanto en la zona segura como ante la orden de retorno\n","Instrucción contenida en instructivo \"Evacuación en contexto Covid 19\""]
[null,"A.1.4","PROTOCOLO","Se debe designar responsable/s de movilizar insumos necesarios, como desinfectantes y elementos de barrera y protección personal, en consideración a las necesidades intensas de higiene y saneamiento, debiendo identificarse previamente un stock crítico y su mecanismo de movilización o provisión a la zona segura.\n","Instrucción contenida en instructivo \"Evacuación en contexto Covid 19\""]
[null,"A.1.5","PROTOCOLO","Se debe definir responsable del envío de Plan actualizado al Director del establecimiento, difusión de su contenido a trabajadores y envío, una vez aprobado por Director, a los Directores de Servicios de Salud con copia a los Coordinadores de Emergencias y Desastres de los Servicios respectivos.","Instrucción contenida en instructivo \"Evacuación en contexto Covid 19\""]
[null,"B"]
[null,"A.2- CONSIDERACIONES PARA EL PROCEDIMIENTO DE EVACUACIÓN A ZONAS SEGURAS"]
[null,"A.2.1","PROTOCOLO","Se debe definir triage y prioridad de evacuación de pacientes de acuerdo con su criticidad, requerimientos de apoyo y de soporte a la vida. (por ejemplo: pacientes autovalentes, pacientes con requerimientos de apoyo básico, pacientes con requerimientos de apoyo crítico), considerando que las condiciones de criticidad de los pacientes pueden haber cambiado al interior del establecimiento o dispositivo. ","Instrucción contenida en instructivo \"Evacuación en contexto Covid 19\""]
[null,"A.2.2","PROTOCOLO","Se deben definir flujos y zonas seguras diferenciadas (pacientes COVID positivo y No COVID), considerando en tal definición cumplimiento de lo establecido en cuanto a distanciamiento de pacientes, señalado en  Circular C13 Nº 9: Precauciones estándares para el control de infecciones en la atención y consideraciones en aislamiento de pacientes. ","Instrucción contenida en instructivo \"Evacuación en contexto Covid 19\""]
[null,"A.2.3","PROTOCOLO","Se debe proveer y distribuir de elementos de barrera y protección personal u otras medidas de prevención tanto para pacientes como para el personal, de acuerdo a los señalado en Circular C37 Nº 1: Protocolo de referencia para correcto uso de Equipo de Protección Personal en pacientes sospechosos o confirmados de COVID-19.\n","Instrucción contenida en instructivo \"Evacuación en contexto Covid 19\""]
[null,"A.2.4","PROTOCOLO","Se debe definir y considerar nuevas zonas seguras y vías de evacuación en el caso de dispositivos anexos (carpas, hospital de campaña u otro). \n","Instrucción contenida en instructivo \"Evacuación en contexto Covid 19\""]
[null,"A.2.5","PROTOCOLO","Se deben considerar mecanismos de alerta y alarma inclusivos y procedimientos de movilización de pacientes que requieran algún tipo de asistencia, definiendo pacientes que requerirán de apoyo para el proceso de evacuación. ","Instrucción contenida en instructivo \"Evacuación en contexto Covid 19\""]
[null,"A.2.6","PROTOCOLO","Se debe definir y considerar la coordinación de traslados necesarios para pacientes que requieren una atención de mayor complejidad. ","Instrucción contenida en instructivo \"Evacuación en contexto Covid 19\""]
[null,"B"]
[null,"A.3- ACCIONES POSTERIORES LA EVACUACIÓN"]
[null,"A.3.1","PROTOCOLO","De acuerdo a lo establecido en Plan, al momento de realizar el censo de pacientes y funcionarios en la zona segura, se verifica la correcta distribución y distanciamientos de pacientes y correcto uso de elementos de barrera y protección personal.","Instrucción contenida en instructivo \"Evacuación en contexto Covid 19\""]
[null,"A.3.2","PROTOCOLO","Se debe definir responsable y medio a través del se realizará el retorno, resguardando las medidas de prevención y distanciamiento ante COVID-19. ","Instrucción contenida en instructivo \"Evacuación en contexto Covid 19\""]

{"sheet":"INFO CENTRO","index":3,"n_rows":33,"n_cols":19,"rows_kept":33,"cut":false,"hidden":false,"merged":[[0,1,0,18],[1,1,3,18],[7,1,8,18],[13,1,13,6],[13,8,13,10],[16,1,16,6],[16,8,16,10],[16,12,16,14],[21,1,21,2],[21,4,21,9],[21,11,21,12],[21,14,21,17],[31,11,31,12],[31,14,31,18],[24,1,24,4],[24,6,24,9],[24,11,24,14],[28,11,29,18],[29,1,29,2],[29,4,29,5],[29,7,29,8]]}
[null,"METODOLOGÍAS SECTORIALES"]
[null,"MEDIDAS PREVENTIVAS EN CENTROS DE TRABAJO\nFRENTE AL COVID-19"]
[]
[]
[]
[null,"INFORMACIÓN DEL ESTABLECIMIENTOS DE ATENCIÓN DE SALUD EVALUADO"]
[]
[null,"A continuación se indica la información que individualiza el establecimiento de salud donde se aplico la pauta de evaluación. En la hoja \"PLAN DE MEDIDAS\" encontraras las acciones que debes implementar para abordar las brechas detectadas en la evaluación."]
[]
[]
[null,"Entidad empleadora"]
[]
[null,"Razón Social",null,null,null,null,null,null,"RUT Empresa"]
[null,{"$f":"+DATOS!$B$16","v":0},null,null,null,null,null,null,{"$f":"+DATOS!$I$16","v":0}]
[]
[null,"Responsable de aplicación",null,null,null,null,null,null,"Cargo",null,null,null,"Correo electrónico"]
[null,{"$f":"+DATOS!$B$19","v":0},null,null,null,null,null,null,{"$f":"+DATOS!$I$19","v":0},null,null,null,{"$f":"+DATOS!$M$19","v":0}]
[]
[null,"Dirección centro de trabajo"]
[]
[null,"Tipo de calle",null,null,"Dirección",null,null,null,null,null,null,"Número",null,null,"Resto de la dirección"]
[null,{"$f":"+DATOS!$B$24","v":0},null,null,{"$f":"+DATOS!$E$24","v":0},null,null,null,null,null,null,{"$f":"+DATOS!$L$24","v":0},null,null,{"$f":"+DATOS!$O$24","v":0}]
[]
[null,"Localidad",null,null,null,null,"Región",null,null,null,null,"Comuna"]
[null,{"$f":"+DATOS!$B$27","v":0},null,null,null,null,{"$f":"+DATOS!$G$27","v":0},null,null,null,null,{"$f":"+DATOS!$L$27","v":0}]
[]
[null,"Trabajadores del centro",null,null,null,null,null,null,null,null,null,"Principal actividad económica"]
[]
[null,"N° Total de trabajadores",null,null,"N° Trabajadores hombres",null,null,"N° Trabajadores mujeres",null,null,null,"Ingrese la principal actividad económica de la empresa, seleccionando desde los CIIU registrados por tu organización en el Servicio de Impuestos Internos (SII)."]
[null,{"$f":"+DATOS!$B$32","v":0},null,null,{"$f":"+DATOS!$E$32","v":0},null,null,{"$f":"+DATOS!$H$32","v":0}]
[null,null,null,null,null,null,null,null,null,null,null,"CIIU",null,null,"Descripción del CIIU"]
[null,null,null,null,null,null,null,null,null,null,null,{"$f":"+DATOS!$L$34","v":0},null,null,{"$f":"+DATOS!$O$34","v":""}]
[null,null,null,null,null,null,null,null,null,null,null,null,null,null,null,null,null,null,"*CIIU = Clasificación Internacional Industrial Uniforme"]

{"sheet":"PLAN DE MEDIDAS","index":4,"n_rows":85,"n_cols":11,"rows_kept":85,"cut":false,"hidden":false,"merged":[[1,1,3,9],[0,1,0,9],[7,1,8,9]]}
[null,"METODOLOGÍAS SECTORIALES"]
[null,"PLAN DE MEDIDAS PREVENTIVAS EN ESTABLECIMIENTOS DE ATENCIÓN DE SALUD\nFRENTE AL COVID-19"]
[]
[]
[]
[null,"PLAN DE MEDIDAS PREVENTIVAS"]
[]
[null,"Para las siguientes actividades se debe establecer RESPONSABLE y FECHA DE IMPLEMENTACIÓN, generando los registros de evidencias solicitados. Considerar que los puntos que establece este plan de medidas pueden ser fiscalizado por la autoridad."]
[]
[]
[null,"N°","TIPO","MEDIDA DE CONTROL","EVIDENCIA DE CUMPLIMIENTO","RESPONSABLE","FECHA IMPLEMENTACIÓN",null,"MATERIAL DE APOYO",null,"cruce"]
[null,"CERO",null,null,null,null,null,null,null,null,{"$f":"+VLOOKUP(B12,EVALUACION!#REF!,5,FALSE)","v":{"$error":"#REF!"}}]
[null,"ORGANIZACIÓN Y RESPONSABILIDADES EN EL CENTRO"]
[null,"CERO"]
[null,1,"Medida obligatoria\nPASO A PASO LABORAL","Se debe considerar la estrategia “PASO A PASO” que dispuso la autoridad sanitaria para generar el desconfinamiento gradual establecido por la pandemia del COVID 19.\n\nPara esto, la organización debe revisar la etapa (cuarentena, transición, preparación, apertura inicial, apertura avanzada) en que se encuentra la comuna donde se emplaza cada uno de sus centro trabajo, verificando las obligaciones y restricciones relacionada con la actividad económica desarrollada.\n\nAdemás, en función de esta estrategia, debe planificar el retorno de los trabajadores a cada centro, considerando los aforos máximo por instalación y la procedencia de cada uno de ellos, verificando que la comuna de su domicilio particular se encuentra en etapa que permite su desplazamiento. ","• Registro actualizado de domicilio particular de cada trabajador.\n• Plan de retorno por cada centro de trabajo.",null,null,"https://www.gob.cl/coronavirus/pasoapaso/","https://www.minsal.cl/conoce-el-plan-paso-a-paso/","-"]
[null,"1.1","Medida obligatoria\nPASO A PASO LABORAL","Se debe considerar la generación de un plan de ACCIONES PARA LA GESTIÓN PREVENTIVA DEL COVID-19, el cual se debe tener por contenido mínimo lo dispuesto en el programa modelo elaborado por la Intendencia de Seguridad y Salud en el Trabajo.\n\nEste plan debe ser difundido a todos los trabajadores, línea de mando, sindicatos, CPHS, contratistas y subcontratistas, dejando registro o evidencia de esta acción.","• Plan de acción para la gestión preventiva del COVID-19.\n• Registro de difusión del plan a línea de mando, sindicatos, CPHS, contratistas, etc., según proceda.",null,null,"https://coronavirus.achs.cl/docs/default-source/default-document-library/achs_plan_de_respuesta_control_y_prevencion.docx?sfvrsn=f918cbe1_2","-","-"]
[null,"1.2","Medida obligatoria\nPASO A PASO LABORAL","Se debe constituir un EQUIPO DE TRABAJO, con representatividad de trabajadores y empleadores, para gestionar todas las acciones preventivas frente al COVID-19 que debe implementar la organización. Este equipo se debe reunir a lo menos una vez por semana para:\n\n• Verificar el cumplimiento y eficacia de las medidas implementadas, dejando el registro que evidencie esas acciones.\n• Generar la retroalimentación y monitoreo de la situación en la empresa.\n• Proponer las mejoras que se requieran para tratar las desviaciones observadas, efectuando el seguimiento de las mismas.\n\nAdemás, se deberá delegar en el Comités Paritarios de Higiene y Seguridad (cuando corresponda), el monitoreo del cumplimiento de las medidas establecidas en el plan de acción para la gestión preventiva del COVID-19.","• Designación de integrantes del equipo de trabajo en el plan de acción.\n• Descripción de las funciones específicas de los integrantes.\n• Registro de reuniones semanales.",null,null,"https://coronavirus.achs.cl/docs/default-source/default-document-library/achs_plan_de_respuesta_control_y_prevencion.docx?sfvrsn=f918cbe1_2","-","-"]
[null,"1.3","Medida obligatoria\nPASO A PASO LABORAL","Se debe ASIGNAR un RESPONSABLE de asegurar el stock de los ELEMENTOS BÁSICOS DE HIGIENE y los EPP (elementos de protección personal) requeridos para el correcto funcionamiento del centro de trabajo.\nLos elementos básicos de higiene:\n• Jabón, alcohol o alcohol gel.\n• Toalla de papel para el secado de manos. \n• Contenedores de basura con tapa.\nLos elementos de protección personal:\n• Dependen de la exposición de los trabajadores del centro. Su entrega debe quedar registrada, indicando \"No compartir los elementos de protección personal, estos son de uso exclusivo para cada trabajador que lo requiere\". \n","• Registro que indique la asignación de la persona responsable en el plan de respuesta.",null,null,"-","-","-"]
[null,"CERO"]
[null,"MEDIDAS PREVENTIVAS APLICABLES AL CENTRO"]
[null,"CERO"]
[null,2,"Medida obligatoria\nPASO A PASO LABORAL","Se debe disponer de medios para el lavado de manos o en su defecto dispensadores de solución de alcohol al 70%, en TODAS LAS ÁREAS COMUNES (de uso compartido). \n\nConsidere a lo menos la obligatoriedad de higiene de manos, utilizando señalización, en los siguientes puntos: \n•\tIngreso al centro de trabajo (considerando los trabajadores y personas externas)\n•\tAcceso al casino o comedor\n•\tAcceso a las salas de reuniones\n•\tAcceso a bodega\n•\tOtros acceso donde se utilicen áreas comunes","• Registro gráfico de la existencia de estos medios.",null,null,"https://coronavirus.achs.cl/docs/default-source/default-document-library/achs_uso_de_alcohol_gel_para_desinfeccion_de_manos.pdf?sfvrsn=d7be0546_0","-","-"]
[null,3,"Medida obligatoria\nPASO A PASO LABORAL","Las instalaciones del establecimiento se deben mantener VENTILADAS, propiciando un recambio de aire periódico. Considere a lo menos:\n• Ventilar las instalaciones al comienzo de las labores diarias.\n• Ventilar cuando se utilizan productos químicos en la limpieza y desinfección.\n• Ventilar las instalaciones por medio de la apertura de las puertas de acceso, siempre y cuando no sean parte de las vías de evacuación existentes en el recinto, y no disponga de otros medios de ventilación.\n\nAdemás, en aquellas instalaciones que poseen ventilación mecánica, se debe verificar el correcto funcionamiento de los sistemas de inyección y/o extracción de aire, evitando la recirculación del mismo.","• Registros de ventilación diaria de las instalaciones antes de la apertura a público.\n• Registro de verificación del sistema de ventilación del lugar de trabajo, cuando corresponda.\n• Registro de otros medidas adoptadas.",null,null,"-","-","-"]
[null,4,"Medida obligatoria\nPASO A PASO LABORAL","Se debe disponer y entregar MASCARILLAS a todos los trabajadores de la organización, indicando su obligatoriedad de uso en el contexto de la pandemia, considerando que \"Se entenderá por mascarilla cualquier material que cubra la nariz y boca para evitar la propagación del virus, ya sea de fabricación artesanal o industrial.\"","• Registro de entrega de mascarilla a los trabajadores.",null,null,"-","-","-"]
[null,5,"Medida obligatoria\nPASO A PASO LABORAL","Se debe informar en el/los ingreso(s) de los clientes, usuarios, trabajadores y externos, utilizando medios gráficos (infografías, carteles, afiches o cualquier otro medio informativo) sobre:\n\nA- Las MEDIDAS DE AUTOCUIDADO al permanecer al interior de las instalaciones de la empresa, en el transporte privado de trabajadores (en caso de que este sea provisto por la empresa), en los ascensores o funiculares y los demás espacios cerrados.\n\nB.- La OBLIGACIÓN DE USAR MASCARILLA bajo las siguientes condiciones o lugares: \n• Al movilizarse en el transporte público o el transporte privado sujeto a pago, incluyendo a quienes operen o trabajen en estos.\n• Al utilizar ascensores o funiculares, independiente del carácter público o privado de éstos y de la cantidad de personas que los estén utilizando, incluyendo a quienes operen o trabajen en estos.\n• Al permanecer en espacios cerrados, independiente de la naturaleza del espacio y de la actividad que ahí se realice.\n• En los espacios comunes de condominios.\n• Al transitar en la vía pública de zonas urbanas o pobladas, así como en espacios públicos o comunitarios.\n\nSin perjuicio de lo dispuesto precedentemente, se exceptúan del uso de mascarillas:\n• Aquellas personas que estén comiendo en lugares especialmente habilitados para ello.\n• Los integrantes de una misma residencia o domicilio, dentro de este. \n• Aquellas personas que estén solas en un espacio cerrado, o con un máximo de dos personas siempre que entre ellas exista una separación física que impida el contacto estrecho.\n• Personas que se encuentren ejecutando algún tipo de práctica deportiva, en la medida que aquella práctica deportiva se encuentre autorizada por la autoridad competente.\n• En niños menores de 2 años.\n• En personas que tengan dificultades para respirar o estén inconscientes.\n• En personas incapacitadas o que por cualquier otro motivo no puedan quitarse la mascarilla sin ayuda.","• Registro gráfico de señalización instalada.",null,null,"-","-","-"]
[null,6,"Medida obligatoria\nPASO A PASO LABORAL","La empresa deberá considerar que en aquellos lugares donde, por la naturaleza de los servicios que se prestan, se formen filas o aglomeraciones, se deberá DEMARCAR LA DISTANCIA de un metro lineal, que debe existir entre cada persona. \nEsta obligación deberá cumplirse ya sea que la fila o aglomeración se forme dentro o fuera del centro de trabajo, utilizando demarcación de un material resistente a la limpieza y químicos de desinfección.\n\nSe debe considerar a los menos, la demarcación en los siguientes puntos:\n•\tIngreso/salida del lugar de trabajo \n•\tEspera para el uso de ascensores\n•\tIngreso a las líneas de proceso\n•\tIngreso del público o usuarios al establecimiento\n•\tIngreso a casinos o comedores\n•\tIngreso a guardarropías o vestidores \n•\tÁrea donde se contacta el trabajador y el encargado de entregar los alimentos\n•\tÁrea para el pago de productos (cajas de pago) o atención / servicio al cliente\n•\tCualquier otro donde se puedan aglomerar las personas","• Registro gráfico de la demarcaciones en pisos de los puntos de aglomeraciones.",null,null,"-","-","-"]
[null,7,"Medida obligatoria\nPASO A PASO LABORAL","Se debe informar claramente por medio de señalización visible y permanente (infografías, carteles, afiches o cualquier otro medio informativo) la obligación de mantener el DISTANCIAMIENTO SOCIAL entre trabajadores(as) propios, contratistas, proveedores y clientes que se encuentran en las instalaciones.\n\nAdemás, se debe asegurar que exista señalización visible y permanente en lugares como: buses utilizados para el traslado de colaboradores, dormitorios de campamentos, casinos o comedores, líneas de procesos, entre otros.\n\nSe exceptúan de lo anterior: \n• Personas que se encuentren en un medio de transporte. \n• Trabajadores(as) que, por la naturaleza de las actividades laborales que realizan, no puedan cumplir con esta medida durante el ejercicio de sus labores. \n• Trabajadores(as) entre los cuales exista una separación física que impida el contacto directo entre ellas.","• Registro gráfico de señalización instalada.",null,null,"-","-","-"]
[null,8,"Medida obligatoria\nPASO A PASO LABORAL","Se debe instalar BARRERAS FÍSICAS para trabajadores que tienen gran interacción con demás trabajadores, contratistas, proveedores, entre otros.\nEstas barreras divisorias deben ser de material acrílico, policarbonato, vidrio u otro similar que propicie la limpieza y desinfección periódica.\nDe no ser posible adaptar las condiciones físicas, se debe utilizar escudo facial.\n\n(No aplicable a las excepciones previstas en el numeral 24 de la Resolución Exenta N° 591 de 23 de julio de 2020 del Ministerio de Salud).","• Identificación de puestos de trabajo y registro gráfico de barreras físicas instaladas.",null,null,"-","-","-"]
[null,9,"Medida obligatoria\nPASO A PASO LABORAL","Se deben demarcar o señalizar los lugares de acceso de los clientes o usuarios, disponiendo ALCOHOL GEL, solicitando su aplicación para higienizar las manos, como requisito de ingreso. La solución de alcohol debe ser de al menos un 70%. \n\nSe debe informar a los clientes o usuarios sobre esta obligación, utilizando infografías (carteles, afiches o cualquier otro medio informativo).","• Registro gráfico de dispensadores de alcohol o alcohol gel en los accesos a público.\n• Registro gráfico de personal aplicando el sanitizante de manos al ingreso del local.",null,null,"-","-","-"]
[null,10,"Medida obligatoria\nPASO A PASO LABORAL","Considerando los ajustes que se efectúan a las instalaciones de la empresa, en el contexto del COVID-19, se debe revisar de forma periódica las rutas de entrada y salida o VÍAS DE ESCAPE o evacuación, verificando que se encuentran bien señalizadas y libres de obstáculos u obstrucciones.","• Registro de verificación periódica de las vías de evacuación y salidas de emergencias.",null,null,"-","-","-"]
[null,11,"Medida obligatoria\nPASO A PASO LABORAL","En el contexto de la actual pandemia, el PLAN DE EMERGENCIA Y EVACUACIÓN del centro de trabajo debe ser actualizado, considerando los cambios efectuados a las instalaciones a partir de la nueva distribución de los puestos de trabajo, el aforo reducido y las eventuales nuevas vías de acceso, circulación y zonas de seguridad, considerando las medidas preventivas que se han dictado por la autoridad para disminuir el riesgo de propagación de COVID-19 entre los trabajadores.\n\nUna vez actualizado el plan, se debe comunicar a todos los colaboradores, dejando registro por escrito de esta actividad.","• Plan de emergencia y evacuación actualizado por temas COVID-19.\n• Registro de difusión de la actualización del plan de respuesta.",null,null,"-","-","-"]
[null,12,"Medida obligatoria\nPASO A PASO LABORAL","Se debe elaborar un PROCEDIMIENTO DE TRABAJO SEGURO, basado en el protocolo establecido por el Ministerio de Salud para estos efectos, que considere - al menos - los siguientes puntos:\n• Formas de efectuar estas labores y los controles relacionados\n• Medidas preventivas asociadas a los productos de limpieza y desinfección ocupados\n• Elementos de protección personal requeridos, indicando como deben ser utilizados\n• Limpieza y desinfección de elementos y EPP reutilizables\n• Información de las hojas de seguridad (HDS)\n• Manipulación y disposición de residuos, EPP desechables utilizados y otros elementos que deban eliminar\n\nUna vez elaborado, se debe INFORMAR y CAPACITAR sobre el procedimiento de trabajo seguro a todos los trabajadores y trabajadoras que realizan las tareas de limpieza y desinfección de las instalaciones.\n\nSe debe mantener un registro actualizado (medio de verificación) de los trabajadores que se han capacitado en este tema, el que deberá estar disponible en todo momento para ser presentado a la autoridad de salud cuando ésta lo requiera.\n\nEste PTS deberá estar disponible en todo momento para ser presentado a la autoridad de salud cuando ésta lo requiera.","• Registro del procedimiento de trabajo seguro para la limpieza y desinfección de las instalaciones, específico para COVID-19.\n• Registro de colaboradores capacitados (considerando como mínimo, nombre, RUT, cargo y firma del trabajador).",null,null,"https://coronavirus.achs.cl/docs/default-source/default-document-library/achs_procedimiento_covid-19_limpieza_y_desinfeccion.docx?sfvrsn=77a19fd8_0","https://coronavirus.achs.cl/docs/default-source/default-document-library/ficha_limpieza_y_desinfeccion_de_ambientes3cbeb152f28a4221a2aff4fd357a31f0.pdf?sfvrsn=3a34f383_0","https://coronavirus.achs.cl/videos/default-source/default-video-library/recomendaciones_personal_limpieza.mp4?sfvrsn=b6409396_0"]
[null,13,"Medida obligatoria\nPASO A PASO LABORAL","Se debe disponer de un PROGRAMA, para asegurar la limpieza y desinfección de las instalaciones del centro de trabajo, el cual considere:\n• Responsable(s) de efectuar la verificación del cumplimiento del programa.\n• Frecuencia en que se debe aplicar la limpieza y desinfección, considerando:\n(a) todos los espacios, superficies y elementos expuestos al flujo de personas, ya sea de trabajadores(as) o clientes, \n(b) las herramientas y elementos de trabajo (y cada vez que sean intercambiadas)\n(c) los espacios cerrados de uso comunitario, como comedores, baños, ascensores, entre otros.\n\nEn estos lugares se debe enfocar la limpieza y desinfección de todas aquellas superficies que son manipuladas por los usuarios con alta frecuencia, como lo es: manillas, pasamanos, taza del inodoro, llaves de agua, superficies de las mesas, escritorios, superficies de apoyo, entre otras. \n\nSe debe considerar además, que se deberá desinfectar y limpiar todos los bienes y/o mercaderías que ingresen a la empresa por terceros externos a la organización.\n\nAdemás, este medio debe considerar el cómo responder en aquellas áreas donde se tenga certeza que ha permanecido un caso sospechoso o confirmado de COVID-19, evitando su utilización hasta su completa limpieza y desinfección.","• Programa de limpieza y desinfección por COVID-19 del centro de trabajo.",null,null,"-","-","-"]
[null,14,"Medida obligatoria\nPASO A PASO LABORAL","Se deben ENTREGAR periódicamente los ELEMENTOS PROTECCIÓN PERSONAL (EPP) a todos los trabajadores que realicen labores de limpieza y desinfección en el centro, considerando a lo menos:\n\n• Guantes desechables o reutilizables, que sean resistentes impermeables, manga larga (no quirúrgicos); \n• Mascarilla para evitar propagación del virus COVID-19.\n• Pechera desechable o reutilizable.\n•  Otros, conforme a los peligros presentes y los indicado en las Hojas de Seguridad (HDS) de los productos utilizados. \nAsí como lo señalado en Circular C37 Nº10 de Minsal.","• Registro de nómina o matriz de EPP asignados por cargo, función, peligro o de acuerdo a como la empresa lo tenga definido.\n• Registros de entrega de EPP a los trabajadores.\n• Registros de observaciones de seguridad (uso de los EPP).",null,null,"https://coronavirus.achs.cl/docs/default-source/default-document-library/achs_ficha_prevencion_de_lesiones.pdf?sfvrsn=c9d4fe1c_0","-","-"]
[null,15,"Medida obligatoria\nPASO A PASO LABORAL","Se debe asegurar la DISPONIBILIDAD de productos de limpieza (detergentes) y desinfectantes de uso ambiental, considerando los siguientes puntos:\n• Mantener una cantidad suficiente en relación al tamaño de las instalaciones que se deben limpiar y desinfectar, que cuenten con registro del Instituto de Salud Pública (ISP).\n• Privilegiar el uso de hipoclorito de sodio al 0.1% por sobre los otros productos químicos desinfectantes disponibles (hipoclorito de sodio, amonios cuaternarios, peróxido de hidrógeno o fenoles, otros.).\n• Para las superficies que podrían ser dañadas por el hipoclorito de sodio, utilizar una concentración de etanol del 70%.\n• Solicitar y mantener las Hojas de Seguridad (HDS) de los productos adquiridos.\n• Solicitar y mantener las fichas técnicas del fabricante del producto donde se indica la preparación y aplicación.\n\nEn el caso de utilizar otro tipo de desinfectante, se recomienda observar lo señalado en el Anexo N° 1 de la Circular C37 N° 10 del 05 de diciembre de 2018 del Ministerio de Salud. En este caso, se deben seguir las recomendaciones del fabricante del desinfectante para su preparación y aplicación.","• Registro del inventario de productos utilizados existencia.\n• Registros de la Hojas de Seguridad (HDS).\n",null,null,"https://coronavirus.achs.cl/docs/default-source/default-document-library/ficha_uso_de_desinfectantes_en_lugares_de_trabajo.pdf?sfvrsn=67b8f3f4_0","-","-"]
[null,16,"Medida obligatoria\nPASO A PASO LABORAL","Se debe disponer de BASUREROS CON TAPA, o contenedores que cumplan esta función, de preferencia sin contacto manual, para para la disposición de los residuos (mascarillas desechables, papel de secado de mano, guantes desechables, entre otros) ubicados en las áreas y lugares de uso común del centro de trabajo.","• Registro gráfico de la existencia de estos medios.",null,null,"-","-","-"]
[null,17,"Medida obligatoria\nPASO A PASO LABORAL","La organización debe adquirir desinfectantes en empresas de venta especializada, creadas específicamente para ese fin, que cuentan con RESOLUCIÓN SANITARIA DE LA SEREMI DE SALUD.\nDe la misma manera, al contratar servicios de aplicación de desinfectantes, debe verificar que estas cuentan con resolución sanitaria de la Seremi de Salud.","• Registro resolución sanitaria de la Seremi Salud.",null,null,"-","-","-"]
[null,18,"Medida obligatoria\nPASO A PASO LABORAL","La organización debe seguir todas las acciones determinadas por la autoridad sanitaria frente a situaciones relacionadas con casos sospechosos, contacto estrecho o casos confirmados de COVID-19 en los trabajadores(as) conforme al Protocolo de Actuación en el Lugar de Trabajo.\nSe debe considerar a lo menos:\n• Registro actualizado de los trabajadores que han estado en CONTACTO ESTRECHO con un compañero u otra persona diagnosticada con COVID-19\n• Procedimiento para la implementación de las medidas de control obligatorias establecidas por la autoridad para los CASOS SOSPECHOSOS de COVID-19\n• Procedimiento que establezca las medidas a implementar para el caso de detectarse un trabajador (propio o tercero) con CASO CONFIRMADO con COVID-19\n• Procedimiento que considere las medidas de CONTENCIÓN EMOCIONAL para el(los) trabajador(es) afectado(s) por COVID-19,\n• Entre otros.","• Procedimientos de la organización para responder a casos sospechosos, contacto estrecho o casos confirmados de COVID-19.",null,null,"-","-","-"]
[null,19,"Medida obligatoria\nPASO A PASO LABORAL","Se debe disponer del mayor número de CANALES O MEDIOS DE COMUNICACIÓN al cual tengan acceso todos los integrantes del centro de trabajo, difundiendo permanentemente y de forma clara las medidas de prevención y de control, generadas por el comité o la autoridad competente. Los canales o medios de comunicación que se deben considerar son:\n• Correo electrónico\n• Mensajería de texto\n• Redes sociales de la empresa (LinkedIn, Twitter, WhatsApp, Instagram, etc.)\n• Intranet\n• Página web\n• Otras\n\n-Se deberá enviar información sobre el COVID-19 y medidas preventivas al correo institucional de cada trabajador, o bien, entregarles un ejemplar impreso de los protocolos internos y del programa de gestión preventiva en la empresa.\n- Se sugiere fijar información, simple y clara, en al menos dos sitios visibles del lugar de trabajo, acerca de las medidas preventivas para evitar el contagio del COVID-19.\n","• Documento que evidencie cuáles son los canales o medios de comunicación.\n• Documento que evidencie la(s) actividad(es) de difusión permanente realizada.",null,null,"https://coronavirus.achs.cl/docs/default-source/default-document-library/achs_coronavirus_ws25faa309c3ad4c5185e6055b19b83cd9.jpg?sfvrsn=e357ef81_0","https://coronavirus.achs.cl/docs/default-source/default-document-library/achs_recomendaciones-transporte.pdf?sfvrsn=96ae9b8e_0","-"]
[null,20,"Medida obligatoria\nPASO A PASO LABORAL","Se debe CAPACITAR a todos los trabajadores del centro, explicando en qué consiste la enfermedad COVID-19, sus formas de transmisión, síntomas, medidas de prevención y medidas de control. También se debe capacitar a los trabajadores, respecto de los protocolos existentes para prevenir o reducir la probabilidad de contagio. Además del uso de elementos de protección personal en los casos que corresponda.\nPara esta actividad se puede utilizar los soporte generados por la ACHS (fichas técnicas, cápsulas informativas y videos), disponibles en la página web.\n","• Registro de colaboradores capacitados (considerando como mínimo, nombre, RUT, cargo y firma del trabajador).",null,null,"https://coronavirus.achs.cl/docs/default-source/default-document-library/achs_instructivo_covid-19_obligacion_de_informar_(odi).docx?sfvrsn=ae61665_0","https://coronavirus.achs.cl/docs/default-source/default-document-library/achs_medidas_generales_para_prevenir_el_covid-19.pdf?sfvrsn=e0df381e_0","https://coronavirus.achs.cl/docs/default-source/default-document-library/achs-antecedentes-generales-medidas-preventivas.pdf?sfvrsn=1a77bd95_0"]
[null,21,"Medida obligatoria\nPASO A PASO LABORAL","Se debe mantener un REGISTRO ACTUALIZADO de los trabajadores que se han capacitado en los temas relacionados con el COVID-19, considerando los siguientes datos mínimos:\n• Nombre completo\n• N° cedula de identidad\n• Cargo u ocupación\n• Firma\n","• Registro de colaboradores capacitados (considerando como mínimo, nombre, RUT, cargo y firma del trabajador).",null,null,"-","-","-"]
[null,22,"Medida obligatoria\nPASO A PASO LABORAL","La empresa deberá EVALUAR LOS RIESGOS de COVID-19 y considerar especialmente a los trabajadores definidos como \"personas de alto riesgo de presentar cuadro grave de infección.\n\nEsta evaluación debe ser efectuada por el Departamento de Prevención de Riesgos o con la asistencia de su organismo administrador del seguro de la ley N° 16.744, considerando en esta evaluación los riesgos derivados de la interacción entre trabajadores(as) propios, contratistas y clientes.","• Registro vigente con la información de trabajadores de alto riesgo.\n• Matriz IPER actualizada.\n• Plan de medidas de prevención específicas para trabajadores de alto riesgo.",null,null,"-","-","-"]
[null,23,"Medida obligatoria\nPASO A PASO LABORAL","En el caso de contar con Comité Paritario de Higiene y Seguridad y/o Departamento de Prevención de Riesgos, la organización debe verificar que éste cumple con las funciones de su competencia respecto a medidas preventivas relacionadas al contagio por COVID-19 y vigila el cumplimiento de las medidas de prevención, higiene y seguridad mediante labores permanentes.","• Plan de trabajo por COVID-19 del CPHS y/o del Dpto. de Prevención.",null,null,"-","-","-"]
[null,24,"Medida obligatoria\nPASO A PASO LABORAL","La organización deberá actualizar, según corresponda, el REGLAMENTO INTERNO de Seguridad e Higiene o Reglamento Interno de Orden, Seguridad e Higiene, incluyendo todas las medidas preventivas y de control asociadas al contexto COVID-19 exigidas por la normativa vigente.","• Reglamento interno actualizado por COVID-19 y comunicado a los trabajadores.",null,null,"-","-","-"]
[null,25,"Medida obligatoria\nPASO A PASO LABORAL","Se debe efectuar la coordinación respecto del riesgo de COVID-19 con todas las EMPRESAS CONTRATISTAS Y SUBCONTRATISTAS, con relación a:\n• Información de los riesgos de COVID-19 que se debe entregar a los trabajadores.\n• Indicación de los insumos mínimos de higiene que se deben mantener.\n• Indicación de las medidas administrativas (horarios de colación diferida, horarios para el uso de duchas diferidas, horarios de ingreso, entre otros).\n\nAdemás, la empresa debe vigilar el cumplimiento de las empresas contratistas y subcontratistas respecto a estas normativas de SST en materia de COVID-19.","• Registro de información comunicada a las empresas contratistas y subcontratistas respecto a la gestión de SST que deben efectuar para controlar la exposición a COVID-19.",null,null,"-","-","-"]
[null,26,"Medida obligatoria\nPASO A PASO LABORAL","Además, la empresa debe vigilar el cumplimiento de las EMPRESAS CONTRATISTAS Y SUBCONTRATISTAS respecto a estas normativas de SST en materia de COVID-19.\n\nLa empresa deberá incorporar medidas preventivas, procedimientos y protocolos en el reglamento especial para empresas contratistas y subcontratistas como parte del sistema de Gestión de Seguridad y Salud en el Trabajo. Respecto de las empresas no obligadas a implementar este sistema, coordinar protocolos de prevención y vigilar el cumplimiento de las medidas de higiene y seguridad del establecimiento, tanto en el ingreso al establecimiento como en el desarrollo de los servicios.","• Registro de información comunicada a las empresas contratistas y subcontratistas respecto a la gestión de SST que deben efectuar para controlar la exposición a COVID-19.",null,null,"-","-","-"]
[null,27,"Medida obligatoria\nPASO A PASO LABORAL","La organización debe considerar las medidas preventivas, procedimientos y protocolos en el REGLAMENTO ESPECIAL PARA EMPRESAS CONTRATISTAS Y SUBCONTRATISTAS como parte del Sistema de Gestión de Seguridad y Salud en el Trabajo. En especial, que contenga las medidas para la prevención y control del riesgo de COVID-19, entre ellas: \n(a) los plazos en que éstas se ejecutarán y sus responsables; \n(b) las acciones de información y formación; \n(c) los procedimientos de control de los riesgos; \n(d) planes de emergencia y \n(e) la investigación de la enfermedad profesional por COVID-19.","• Registro de información en el reglamento especial para empresas contratistas y subcontratistas.",null,null,"-","-","-"]
[null,"CERO"]
[null,"MEJORES PRACTICAS PARA UNA EFECTIVA PREVENCION EN LOS CENTROS DE TRABAJO"]
[null,"CERO"]
[null,"1_","Recomendación\nPASO A PASO LABORAL","La empresa deberá fomentar la PARTICIPACIÓN en la toma de decisiones de trabajadores, organizaciones sindicales, comités paritarios de higiene y seguridad, expertos en prevención y departamentos de prevención de riesgos, así como de los organismos administradores de la Ley 16.744 sobre accidentes del trabajo y enfermedades profesionales. En este sentido, el rol de los comités paritarios de higiene y seguridad, atendido su carácter bipartito, resulta vital para el levantamiento de información, así como para la toma de decisiones al interior de las empresas en materias asociadas al contexto COVID-19.","• Registro de minutas de reuniones y acuerdos.\n• Registro de actividades del plan con participación conjunta.\n• Registro de actividades de inspección conjunta para verificar la efectividad de las medidas de control.",null,null,"-","-","-"]
[null,"2_","Recomendación\nPASO A PASO LABORAL","La organización debe solicitar ayuda y asistencia técnica al organismo administrador del seguro de la ley N° 16.744 al que se encuentra afiliado el empleador para la implementación de las medidas preventivas.","• Registro de solicitud de asesoría técnica.",null,null,"-","-","-"]
[null,"3_","Recomendación\nACHS","La empresa debe difundir a los trabajadores, a través de sus diferentes canales de comunicación e información definidos, las medidas preventivas frente al COVID-19 durante el uso del TRASPORTE PÚBLICO y las que deben ser consideradas en el HOGAR.","• Documento que evidencie la(s) actividad(es) de difusión permanente realizada.",null,null,"https://coronavirus.achs.cl/docs/default-source/default-document-library/achs_ficha_manejo_de_ropa_de_trabajadores.pdf?sfvrsn=d0d128ae_0","-","-"]
[null,"4_","Recomendación\nACHS","Se debe elaborar un Instructivo para efectuar el CONTROL DE ACCESO para todos los trabajadores y personas externas que necesiten ingresar al centro de trabajo, el cual debe contener como mínimo:\n-El control de  temperatura corporal al ingreso, exigir uso de mascarilla y solicitar declaración voluntaria de sintomatología asociada a COVID-19 y datos de contacto para efectos de trazabilidad. En caso de presentar sintomatología, prohibir ingreso.\n- Señalización de la ruta de ingreso y salida de los trabajadores al centro de trabajo, considerando que existen uno o varios accesos a los espacios de trabajo.","• Procedimiento de control de ingreso del centro de trabajo en el contexto del COVID-19.\n• Registros de control de temperatura y estado de salud.",null,null,"https://coronavirus.achs.cl/docs/default-source/default-document-library/achs_procedimiento_covid-19_control_de_ingreso.docx?sfvrsn=a9a6041d_0","https://coronavirus.achs.cl/videos/default-source/default-video-library/8animacion-medicion-correcta-temperatura-achs-v4.mp4?sfvrsn=4dc9c1df_0","https://coronavirus.achs.cl/docs/default-source/default-document-library/achs_procedimiento_trabajadores_visitas.pdf?sfvrsn=a93515c0_0"]
[null,"5_","Recomendación\nACHS","Se habilita PEDILUVIOS SANITARIOS con desinfectante en el ingreso al lugar de trabajo.","• Registro gráfico de la existencia de estos medios.",null,null,"-","-","-"]
[null,"6_","Recomendación\nPASO A PASO LABORAL","Se debe señalizar la ruta de ingreso y salida de los trabajadores al centro de trabajo, considerando lo siguiente:\n• Si cuenta con dos o más accesos, se debe habilitar uno de manera exclusiva para ingreso y otro de manera exclusiva para salida. \n• Si se cuenta con un solo acceso, se debe demarcar el sentido de circulación para ingreso y salida.","• Registro fotográfico.",null,null,"https://coronavirus.achs.cl/docs/default-source/default-document-library/achs_procedimiento_covid-19_control_de_ingreso.docx?sfvrsn=a9a6041d_0","https://coronavirus.achs.cl/videos/default-source/default-video-library/8animacion-medicion-correcta-temperatura-achs-v4.mp4?sfvrsn=4dc9c1df_0","https://coronavirus.achs.cl/docs/default-source/default-document-library/achs_procedimiento_trabajadores_visitas.pdf?sfvrsn=a93515c0_0"]
[null,"7_","Recomendación\nPASO A PASO LABORAL","La organización debe tener establecido un instructivo específico para la limpieza y desinfección de todos los bienes y/o mercaderías que ingresen a la empresa.\nLa desinfección se debe efectuar siguiendo los pasos del procedimiento establecidos para tales efectos.","• Instructivo de desinfección de bienes o mercaderías que ingresan a la empresa.",null,null,"-","-","-"]
[null,"8_","Recomendación\nPASO A PASO LABORAL","La empresa deberá demarcar la capacidad máxima del uso de ascensores, garantizando el debido distanciamiento de al menos 1 metro entre las personas.","• Registro gráfico de la capacidad máxima permitida del ascensor y demarcación en piso para asegurar distanciamiento social.",null,null,"-","-","-"]
[null,"9_","Recomendación\nPASO A PASO LABORAL","Se debe reforzar a los trabajadores que el UNIFORME o ROPAS DE TRABAJO es de uso exclusivo en las instalaciones del centro, no debiendo utilizarse en el traslados entre este y el lugar habitación.\n\nAdemás, se debe establecer la higienización diaria de estos uniformes/ropa de trabajo y de cualquier otro textil que se utilice (por ejemplo, ropa de cama, cortinas, etc.) en el mismo centro, lavándose con un ciclo de agua caliente (90 ° C) y agregar detergente para la ropa.\n","• Registro de higienización de uniforme y ropas de trabajo.",null,null,"-","-","-"]
[null,"10_","Recomendación\nPASO A PASO LABORAL","Se debe disponer de BASUREROS CON TAPA y bolsa en su interior, de preferencia sin contacto manual, para la eliminación de mascarillas desechables, papel de secado de mano, guantes, entre otros.","• Registro gráfico de la existencia de estos medios.",null,null,"-","-","-"]
[null,"11_","Recomendación\nPASO A PASO LABORAL","Se debe recomendar a los clientes o usuarios EVITAR el uso de dinero en efectivo, privilegiando los métodos de pago electrónico. Para esto:\n• Instruya al personal de cajas y dependientes, en orientar la decisión de pago del cliente con medios electrónicos.\n• Establezca promociones por pago medios electrónicos: ofertas, descuentos, puntos, otros.\n• Disponga los medios necesarios para sanitizar el POS, con regularidad.","• Registro gráfico de infografías, avisos, cartelería con llamados a privilegiar el uso de medios electrónicos de pago.",null,null,"-","-","-"]
[null,"12_","Recomendación\nPASO A PASO LABORAL","Por medio del sistema de megafonía que posee el establecimiento se debe DIFUNDIR, de forma regular, las obligaciones y recomendaciones generales de autocuidado a las personas que permanecen en el establecimiento, local u oficina de atención. Considere a lo menos informar sobre las medidas básicas indicadas por el Ministerio de Salud:\n• Mantener en todo momento una distancia de al menos 1 metro entre personas.\n• Cubrir nariz y boca con antebrazo al toser o estornudar, o cubrir con pañuelo desechable. En dicho caso, botar inmediatamente después de su uso en contenedor con tapa.\n• Fomentar el lavado frecuente de manos con agua y jabón, por 20 segundos, o, en su defecto uso de alcohol o alcohol gel disponible.\n• Saludo sin contacto físico y con distanciamiento.\n• Evitar tocarse la cara.\n• Uso obligatorio de mascarillas.","• Registro de la información difundida por los sistemas de audio.",null,null,"-","-","-"]
[null,"13_","Recomendación\nPASO A PASO LABORAL","Se deben FOMENTAR el uso de vías telemáticas para realizar las actividades grupales (reuniones, charlas, capacitaciones, mesas de trabajo), favoreciendo las actividades vía videoconferencia, llamadas telefónicas o correos electrónicos, con el objeto de evitar la aglomeración de personas.\nEn el estricto caso de ser requeridas estas actividades, se deben considerar las siguientes medidas:\n• Uso de lugares amplios que aseguren el espacio necesario para mantener el distanciamiento social. (de manera que los participantes estén al menos a 1 metro de distancia entre sí).\n• Reducir el número de personas a las estrictamente necesarias.\n• Contar con acceso a lavado de manos o en su defecto solución de alcohol gel, antes del ingreso a las instalaciones\n• Mantener ventilación constante \n• Uso de mascarilla\n• Evitar disponer de alimentos y bebestibles durante la reunión\n• Conservar los nombres, RUT y teléfonos de los participantes de la reunión durante al menos 1 mes\n• Desinfección de las instalaciones después de su uso","• Registro o comunicado de esta restricción.\n• Registro de medidas preventivas en caso de realizar actividades grupales.",null,null,"-","-","-"]
[null,"14_","Recomendación\nPASO A PASO LABORAL","Para fortalecer la información entregada a los trabajadores(as), se debe señalizar mediante medios gráficos instalados en el ingreso (carteles, avisos, paneles, otros), INFORMACIÓN RESUMIDA Y CONCRETA sobre las medidas de autocuidado y las medidas preventivas implementadas en la empresa.","• Registro fotográfico.",null,null,"-","-","-"]
[null,"CERO"]
[null,"ACTUALIZACIÓN PLAN DE EVACUACIÓN ANTE EMERGENCIAS"]
[null,"A"]
[null,"A.1- DEFINICIÓN DE RESPONSABILIDADES"]
[null,"A.1.1","PROTOCOLO","La organización debe designar responsable/s de elaborar y definir las medidas de prevención que definen zonas seguras, flujos evacuación y retorno de personas (trabajadores y pacientes), movimiento y/o traslado de equipamiento, insumos, elementos de barrera y protección personal al momento de aplicar dispositivo sanitario (evacuación).","• Registro de designación de responsabilidades en plan de evacuación institucional ante emergencias.\n• Descripción de funciones específicas.\n• Registro de reuniones periódicas de revisión, coordinación y simulacros.",null,null," "," "," "]
[null,"A.1.2","PROTOCOLO","La organización debe designar responsable/s de movimiento y/o traslado de equipos y equipamiento crítico.","• Registro de designación de responsabilidades en plan de evacuación institucional ante emergencias.\n• Descripción de funciones específicas.\n• Registro de reuniones periódicas de revisión, coordinación y simulacros.",null,null," "," "," "]
[null,"A.1.3","PROTOCOLO","La organización debe designar responsable/s de elaborar y definir las medidas de prevenciónante COVID-19 durante la evacuación y posterior a ella, tanto en la zona segura como ante la orden de retorno.","• Registro de designación de responsabilidades en plan de evacuación institucional ante emergencias.\n• Descripción de funciones específicas.\n• Registro de reuniones periódicas de revisión, coordinación y simulacros.",null,null," "," "," "]
[null,"A.1.4","PROTOCOLO","La organización debe designar responsable/s de movilizar insumos necesarios, como desinfectantes y elementos de barrera y protección personal, en consideración a las necesidades intensas de higiene y saneamiento, debiendo identificarse previamente un stock crítico y su mecanismo de movilización o provisión a la zona segura..","• Registro de designación de responsabilidades en plan de evacuación institucional ante emergencias.\n• Descripción de funciones específicas.\n• Registro de reuniones periódicas de revisión, coordinación y simulacros.",null,null," "," "," "]
[null,"A.1.5","PROTOCOLO","La organización debe designar responsable/s de del envío de Plan actualizado al Director del establecimiento, difusión de su contenido a trabajadores y envío, una vez aprobado por Director, a los Directores de Servicios de Salud con copia a los Coordinadores de Emergencias y Desastres de los Servicios respectivos..","• Registro de designación de responsabilidades en plan de evacuación institucional ante emergencias.\n• Descripción de funciones específicas.\n• Registro de reuniones periódicas de revisión, coordinación y simulacros.",null,null," "," "," "]
[null,"B"]
[null,"A.2- CONSIDERACIONES PARA EL PROCEDIMIENTO DE EVACUACIÓN A ZONAS SEGURAS"]
[null,"A.2.1","PROTOCOLO","La organización debe definir triage y prioridad de evacuación de pacientes de acuerdo con su criticidad, requerimientos de apoyo y de soporte a la vida.","Copia procedimiento asociado (triage), definido en plan institucional de evacuación ante emergencias.",null,null," "," "," "]
[null,"A.2.2","PROTOCOLO","La organización debe definir flujos y zonas seguras diferenciadas (pacientes COVID positivo y No COVID), considerando en tal definición cumplimiento de lo establecido en cuanto a distanciamiento de pacientes, señalado en  Circular C13 Nº 9.","Copia procedimiento asociado (flujos hacia y desde zonas seguras), definido en plan institucional de evacuación ante emergencias.",null,null," "," "," "]
[null,"A.2.3","PROTOCOLO","La organización debe proveer y distribuir de elementos de barrera y protección personal u otras medidas de prevención tanto para pacientes como para el personal, de acuerdo a los señalado en Circular C37 Nº 1.","Copia procedimiento asociado (definición epp), definido en plan institucional de evacuación ante emergencias.",null,null," "," "," "]
[null,"A.2.4","PROTOCOLO","La organización debe definir y considerar nuevas zonas seguras y vías de evacuación en el caso de dispositivos anexos (carpas, hospital de campaña u otro).","Copia procedimiento asociado (flujos hacia y desde zonas seguras), definido en plan institucional de evacuación ante emergencias.",null,null," "," "," "]
[null,"A.2.5","PROTOCOLO","La organización debe considerar mecanismos de alerta y alarma inclusivos y procedimientos de movilización de pacientes que requieran algún tipo de asistencia, definiendo pacientes que requerirán de apoyo para el proceso de evacuación.","Copia procedimiento asociado (alarmas y alertas), definido en plan institucional de evacuación ante emergencias.",null,null," "," "," "]
[null,"A.2.6","PROTOCOLO","La organización debe definir y considerar la coordinación de traslados necesarios para pacientes que requieren una atención de mayor complejidad.","Copia procedimiento asociado (traslados según complejidad), definido en plan institucional de evacuación ante emergencias.",null,null," "," "," "]
[null,"B"]
[null,"A.3- ACCIONES POSTERIORES LA EVACUACIÓN"]
[null,"A.3.1","PROTOCOLO","La organización debe establecer, al momento de realizar el censo de pacientes y funcionarios en la zona segura, se verifica la correcta distribución y distanciamientos de pacientes y correcto uso de elementos de barrera y protección personal.","Copia procedimiento asociado (distribución y distanciamiento en zonas seguras), definido en plan institucional de evacuación ante emergencias.",null,null," "," "," "]
[null,"A.3.2","PROTOCOLO","La organización debe definir responsable y medio a través del se realizará el retorno, resguardando las medidas de prevención y distanciamiento ante COVID-19. ","Copia procedimiento asociado (flujos hacia y desde zonas seguras), definido en plan institucional de evacuación ante emergencias.",null,null," "," "," "]

{"sheet":"BBDD","index":5,"n_rows":724,"n_cols":22,"rows_kept":724,"cut":false,"hidden":true,"merged":[]}
[null,"Código Región","NombreRegion","Abreviatura Región",null,null,"Tarapacá","Antofagasta","Atacama","Coquimbo","Valparaíso","Libertador_General_Bernardo_OHiggins","Maule","Biobío","La_Araucanía","Los_Lagos","Aysén_del_General_Carlos_Ibáñez_del_Campo","Magallanes_y_de_la_Antártica_Chilena","Metropolitana_de_Santiago","Los_Ríos","Arica_y_Parinacota","Ñuble"]
[null,"01","Tarapacá","TPCA",null,null,"Alto Hospicio","Antofagasta","Alto del Carmen","Andacollo","Algarrobo","Chépica","Cauquenes","Alto Biobío","Angol","Ancud","Coihaique","Antártica","Alhué","Corral","Arica","Bulnes"]
[null,"02","Antofagasta","ANTOF",null,null,"Camiña","Calama","Caldera","Canela","Cabildo","Chimbarongo","Chanco","Antuco","Carahue","Calbuco","Aisén","Cabo de Hornos","Buin","Futrono","Camarones","Chillán"]
[null,"03","Atacama","ATCMA",null,null,"Colchane","María Elena","Chañaral","Combarbalá","Calera","Codegua","Colbún","Arauco","Cholchol","Castro","Chile Chico","Laguna Blanca","Calera de Tango","La Unión","General Lagos","Chillán Viejo"]
[null,"04","Coquimbo","COQ",null,null,"Huara","Mejillones","Copiapó","Coquimbo","Calle Larga","Coinco","Constitución","Cabrero","Collipulli","Chaitén","Cisnes","Natales","Cerrillos","Lago Ranco","Putre","Cobquecura"]
[null,"05","Valparaíso","VALPO",null,null,"Iquique","Ollagüe","Diego de Almagro","Illapel","Cartagena","Coltauco","Curepto","Cañete","Cunco","Chonchi","Cochrane","Porvenir","Cerro Navia","Lanco",null,"Coelemu"]
[null,"06","Libertador General Bernardo OHiggins","LGBO",null,null,"Pica","San Pedro de Atacama","Freirina","La Higuera","Casablanca","Doñihue","Curicó","Chiguayante","Curacautín","Cochamó","Guaitecas","Primavera","Colina","Los Lagos",null,"Coihueco"]
[null,"07","Maule","MAULE",null,null,"Pozo Almonte","Sierra Gorda","Huasco","La Serena","Catemu","Graneros","Empedrado","Concepción","Curarrehue","Curaco de Vélez","Lago Verde","Punta Arenas","Conchalí","Máfil",null,"El Carmen"]
[null,"08","Biobío","BBIO",null,null,null,"Taltal","Tierra Amarilla","Los Vilos","Concón","La Estrella","Hualañé","Contulmo","Ercilla","Dalcahue","O'Higgins","Río Verde","Curacaví","Mariquina",null,"Ninhue"]
[null,"09","La Araucanía","ARAUC",null,null,null,"Tocopilla","Vallenar","Monte Patria","El Quisco","Las Cabras","Licantén","Coronel","Freire","Fresia","Río Ibáñez","San Gregorio","El Bosque","Paillaco",null,"Ñiquén"]
[null,"10","Los Lagos","LAGOS",null,null,null,null,null,"Ovalle","El Tabo","Litueche","Linares","Curanilahue","Galvarino","Frutillar","Tortel","Timaukel","El Monte","Panguipulli",null,"Pemuco"]
[null,"11","Aysén del General Carlos Ibáñez del Campo","AYSEN",null,null,null,null,null,"Paiguano","Hijuelas","Lolol","Longaví","Florida","Gorbea","Futaleufú",null,"Torres del Paine","Estación Central","Río Bueno",null,"Pinto"]
[null,"12","Magallanes y de la Antártica Chilena","MAG",null,null,null,null,null,"Punitaqui","Isla de Pascua","Machalí","Maule","Hualpén","Lautaro","Hualaihué",null,null,"Huechuraba","Valdivia",null,"Portezuelo"]
[null,"13","Metropolitana de Santiago","RM",null,null,null,null,null,"Río Hurtado","Juan Fernández","Malloa","Molina","Hualqui","Loncoche","Llanquihue",null,null,"Independencia",null,null,"Quillón"]
[null,"14","Los Ríos","RIOS",null,null,null,null,null,"Salamanca","La Cruz","Marchihue","Parral","Laja","Lonquimay","Los Muermos",null,null,"Isla de Maipo",null,null,"Quirihue"]
[null,"15","Arica y Parinacota","AyP",null,null,null,null,null,"Vicuña","La Ligua","Mostazal","Pelarco","Lebu","Los Sauces","Maullín",null,null,"La Cisterna",null,null,"Ranquil"]
[null,"16","Ñuble","NUBLE",null,null,null,null,null,null,"Limache","Nancagua","Pelluhue","Los Alamos","Lumaco","Osorno",null,null,"La Florida",null,null,"San Carlos"]
[null,null,null,null,null,null,null,null,null,null,"Llaillay","Navidad","Pencahue","Los Angeles","Melipeuco","Palena",null,null,"La Granja",null,null,"San Fabián"]
[null,null,null,null,null,null,null,null,null,null,"Los Andes","Olivar","Rauco","Lota","Nueva Imperial","Puerto Montt",null,null,"La Pintana",null,null,"San Ignacio"]
[null,"Resultado","Tipo de calle",null,null,null,null,null,null,null,"Nogales","Palmilla","Retiro","Mulchén","Padre Las Casas","Puerto Octay",null,null,"La Reina",null,null,"San Nicolás"]
[null,"Cumple","Avenida",null,null,null,null,null,null,null,"Olmué","Paredones","Río Claro","Nacimiento","Perquenco","Puerto Varas",null,null,"Lampa",null,null,"Treguaco"]
[null,"No cumple","Calle",null,null,null,null,null,null,null,"Panquehue","Peralillo","Romeral","Negrete","Pitrufquén","Puqueldón",null,null,"Las Condes",null,null,"Yungay"]
[null,"No aplica","Pasaje",null,null,null,null,null,null,null,"Papudo","Peumo","Sagrada Familia","Penco","Pucón","Purranque",null,null,"Lo Barnechea"]
[null,null,null,null,null,null,null,null,null,null,"Petorca","Pichidegua","San Clemente","Quilaco","Purén","Puyehue",null,null,"Lo Espejo"]
[null,"Tipo","Organismo administrador",null,null,null,null,null,null,null,"Puchuncaví","Pichilemu","San Javier","Quilleco","Renaico","Queilén",null,null,"Lo Prado"]
[null,"Primario","ACHS - Asociación Chilena de Seguridad",null,null,null,null,null,null,null,"Putaendo","Placilla","San Rafael","San Pedro de la Paz","Saavedra","Quellón",null,null,"Macul"]
[null,"Secundario","MCCHS - Mutual de Seguridad de la Cámara Chilena de la Construcción",null,null,null,null,null,null,null,"Quillota","Pumanque","Talca","San Rosendo","Temuco","Quemchi",null,null,"Maipú"]
[null,null,"ISL - Instituto de Seguridad Laboral",null,null,null,null,null,null,null,"Quilpué","Quinta de Tilcoco","Teno","Santa Bárbara","Teodoro Schmidt","Quinchao",null,null,"María Pinto"]
[null,null,"IST - Instituto de Seguridad del Trabajo",null,null,null,null,null,null,null,"Quintero","Rancagua","Vichuquén","Santa Juana","Toltén","Río Negro",null,null,"Melipilla"]
[null,null,null,null,null,null,null,null,null,null,"Rinconada","Rengo","Villa Alegre","Talcahuano","Traiguén","San Juan de la Costa",null,null,"Ñuñoa"]
[null,"VALOR","NIVEL DE PROBABILIDAD",null,null,null,null,null,null,null,"San Antonio","Requínoa","Yerbas Buenas","Tirúa","Victoria","San Pablo",null,null,"Padre Hurtado"]
[null,10,"MUY ALTA",null,null,null,null,null,null,null,"San Esteban","San Fernando",null,"Tomé","Vilcún",null,null,null,"Paine"]
[null,6,"ALTA",null,null,null,null,null,null,null,"San Felipe","San Vicente",null,"Tucapel","Villarrica",null,null,null,"Pedro Aguirre Cerda"]
[null,3,"MEDIA",null,null,null,null,null,null,null,"Santa María","Santa Cruz",null,"Yumbel",null,null,null,null,"Peñaflor"]
[null,1,"BAJA",null,null,null,null,null,null,null,"Santo Domingo",null,null,null,null,null,null,null,"Peñalolén"]
[null,"NO APLICA","NO APLICA",null,null,null,null,null,null,null,"Valparaíso",null,null,null,null,null,null,null,"Pirque"]
[null,"VALOR","NIVEL DE CONSECUENCIA",null,null,null,null,null,null,null,"Villa Alemana",null,null,null,null,null,null,null,"Providencia"]
[null,100,"LESIONES MUY GRAVES O FATAL ",null,null,null,null,null,null,null,"Viña del Mar",null,null,null,null,null,null,null,"Pudahuel"]
[null,60,"LESIONES GRAVES",null,null,null,null,null,null,null,"Zapallar",null,null,null,null,null,null,null,"Puente Alto"]
[null,25,"LESIONES MENOS GRAVES",null,null,null,null,null,null,null,null,null,null,null,null,null,null,null,"Quilicura"]
[null,10,"LESIONES LEVES",null,null,null,null,null,null,null,null,null,null,null,null,null,null,null,"Quinta Normal"]
[null,"NO APLICA","NO APLICA",null,null,null,null,null,null,null,null,null,null,null,null,null,null,null,"Recoleta"]
[null,null,null,null,null,null,null,null,null,null,null,null,null,null,null,null,null,null,"Renca"]
[null,null,null,null,null,null,null,null,null,null,null,null,null,null,null,null,null,null,"San Bernardo"]
[null,null,null,null,null,null,null,null,null,null,null,null,null,null,null,null,null,null,"San Joaquín"]
[null,"Enero",2021,null,null,null,null,null,null,null,null,null,null,null,null,null,null,null,"San José de Maipo"]
[null,"Febrero",2022,null,null,null,null,null,null,null,null,null,null,null,null,null,null,null,"San Miguel"]
[null,"Marzo",null,null,null,null,null,null,null,null,null,null,null,null,null,null,null,null,"San Pedro"]
[null,"Abril",null,null,null,null,null,null,null,null,null,null,null,null,null,null,null,null,"San Ramón"]
[null,"Mayo",null,null,null,null,null,null,null,null,"CodigoCIIU4","Desc_CodigoCIIU4 (MINÚSCULA)",null,null,null,null,null,null,"Santiago"]
[null,"Junio",null,null,null,null,null,null,null,null,"011101","Cultivo de trigo",null,null,null,null,null,null,"Talagante"]
[null,"Julio",null,null,null,null,null,null,null,null,"011102","Cultivo de maíz",null,null,null,null,null,null,"Tiltil"]
[null,"Agosto",null,null,null,null,null,null,null,null,"011103","Cultivo de avena",null,null,null,null,null,null,"Vitacura"]
[null,"Septiembre",null,null,null,null,null,null,null,null,"011104","Cultivo de cebada"]
[null,"Octubre",null,null,null,null,null,null,null,null,"011105","Cultivo de otros cereales (excepto trigo, maíz, avena y cebada)"]
[null,"Noviembre",null,null,null,null,null,null,null,null,"011106","Cultivo de porotos"]
[null,"Diciembre",null,null,null,null,null,null,null,null,"011107","Cultivo de lupino"]
[null,null,null,null,null,null,null,null,null,null,"011108","Cultivo de otras legumbres (excepto porotos y lupino)"]
[null,null,null,null,null,null,null,null,null,null,"011109","Cultivo de semillas de raps"]
[null,null,null,null,null,null,null,null,null,null,"011110","Cultivo de semillas de maravilla (girasol)"]
[null,null,null,null,null,null,null,null,null,null,"011111","Cultivo de semillas de cereales, legumbres y oleaginosas (excepto semillas de raps y maravilla)"]
[null,null,null,null,null,null,null,null,null,null,"011200","Cultivo de arroz"]
[null,null,null,null,null,null,null,null,null,null,"011301","Cultivo de papas"]
[null,null,null,null,null,null,null,null,null,null,"011302","Cultivo de camotes"]
[null,null,null,null,null,null,null,null,null,null,"011303","Cultivo de otros tubérculos (excepto papas y camotes)"]
[null,null,null,null,null,null,null,null,null,null,"011304","Cultivo de remolacha azucarera"]
[null,null,null,null,null,null,null,null,null,null,"011305","Cultivo de semillas de hortalizas"]
[null,null,null,null,null,null,null,null,null,null,"011306","Cultivo de hortalizas y melones"]
[null,null,null,null,null,null,null,null,null,null,"011400","Cultivo de caña de azúcar"]
[null,null,null,null,null,null,null,null,null,null,"011500","Cultivo de tabaco"]
[null,null,null,null,null,null,null,null,null,null,"011600","Cultivo de plantas de fibra"]
[null,null,null,null,null,null,null,null,null,null,"011901","Cultivo de flores"]
[null,null,null,null,null,null,null,null,null,null,"011902","Cultivos forrajeros en praderas mejoradas o sembradas; cultivos suplementarios forrajeros"]
[null,null,null,null,null,null,null,null,null,null,"011903","Cultivos de semillas de flores; cultivo de semillas de plantas forrajeras"]
[null,null,null,null,null,null,null,null,null,null,"012111","Cultivo de uva destinada a la producción de pisco y aguardiente"]
[null,null,null,null,null,null,null,null,null,null,"012112","Cultivo de uva destinada a la producción de vino"]
[null,null,null,null,null,null,null,null,null,null,"012120","Cultivo de uva para mesa"]
[null,null,null,null,null,null,null,null,null,null,"012200","Cultivo de frutas tropicales y subtropicales (incluye el cultivo de paltas)"]
[null,null,null,null,null,null,null,null,null,null,"012300","Cultivo de cítricos"]
[null,null,null,null,null,null,null,null,null,null,"012400","Cultivo de frutas de pepita y de hueso"]
[null,null,null,null,null,null,null,null,null,null,"012501","Cultivo de semillas de frutas"]
[null,null,null,null,null,null,null,null,null,null,"012502","Cultivo de otros frutos y nueces de árboles y arbustos"]
[null,null,null,null,null,null,null,null,null,null,"012600","Cultivo de frutos oleaginosos (incluye el cultivo de aceitunas)"]
[null,null,null,null,null,null,null,null,null,null,"012700","Cultivo de plantas con las que se preparan bebidas (incluye el cultivo de café, té y mate)"]
[null,null,null,null,null,null,null,null,null,null,"012801","Cultivo de especias"]
[null,null,null,null,null,null,null,null,null,null,"012802","Cultivo de plantas aromáticas, medicinales y farmacéuticas"]
[null,null,null,null,null,null,null,null,null,null,"012900","Cultivo de otras plantas perennes"]
[null,null,null,null,null,null,null,null,null,null,"013000","Cultivo de plantas vivas incluida la producción en viveros (excepto viveros forestales)"]
[null,null,null,null,null,null,null,null,null,null,"014101","Cría de ganado bovino para la producción lechera"]
[null,null,null,null,null,null,null,null,null,null,"014102","Cría de ganado bovino para la producción de carne o como ganado reproductor"]
[null,null,null,null,null,null,null,null,null,null,"014200","Cría de caballos y otros equinos"]
[null,null,null,null,null,null,null,null,null,null,"014300","Cría de llamas, alpacas, vicuñas, guanacos y otros camélidos"]
[null,null,null,null,null,null,null,null,null,null,"014410","Cría de ovejas (ovinos)"]
[null,null,null,null,null,null,null,null,null,null,"014420","Cría de cabras (caprinos)"]
[null,null,null,null,null,null,null,null,null,null,"014500","Cría de cerdos"]
[null,null,null,null,null,null,null,null,null,null,"014601","Cría de aves de corral para la producción de carne"]
[null,null,null,null,null,null,null,null,null,null,"014602","Cría de aves de corral para la producción de huevos"]
[null,null,null,null,null,null,null,null,null,null,"014901","Apicultura"]
[null,null,null,null,null,null,null,null,null,null,"014909","Cría de otros animales n.c.p."]
[null,null,null,null,null,null,null,null,null,null,"015000","Cultivo de productos agrícolas en combinación con la cría de animales (explotación mixta)"]
[null,null,null,null,null,null,null,null,null,null,"016100","Actividades de apoyo a la agricultura"]
[null,null,null,null,null,null,null,null,null,null,"016200","Actividades de apoyo a la ganadería"]
[null,null,null,null,null,null,null,null,null,null,"016300","Actividades poscosecha"]
[null,null,null,null,null,null,null,null,null,null,"016400","Tratamiento de semillas para propagación"]
[null,null,null,null,null,null,null,null,null,null,"017000","Caza ordinaria y mediante trampas y actividades de servicios conexas"]
[null,null,null,null,null,null,null,null,null,null,"021001","Explotación de viveros forestales"]
[null,null,null,null,null,null,null,null,null,null,"021002","Silvicultura y otras actividades forestales (excepto explotación de viveros forestales)"]
[null,null,null,null,null,null,null,null,null,null,"022000","Extracción de madera"]
[null,null,null,null,null,null,null,null,null,null,"023000","Recolección de productos forestales distintos de la madera"]
[null,null,null,null,null,null,null,null,null,null,"024001","Servicios de forestación a cambio de una retribución o por contrata"]
[null,null,null,null,null,null,null,null,null,null,"024002","Servicios de corta de madera a cambio de una retribución o por contrata"]
[null,null,null,null,null,null,null,null,null,null,"024003","Servicios de extinción y prevención de incendios forestales"]
[null,null,null,null,null,null,null,null,null,null,"024009","Otros servicios de apoyo a la silvicultura n.c.p."]
[null,null,null,null,null,null,null,null,null,null,"031110","Pesca marítima industrial, excepto de barcos factoría"]
[null,null,null,null,null,null,null,null,null,null,"031120","Pesca marítima artesanal"]
[null,null,null,null,null,null,null,null,null,null,"031130","Recolección y extracción de productos marinos"]
[null,null,null,null,null,null,null,null,null,null,"031140","Servicios relacionados con la pesca marítima"]
[null,null,null,null,null,null,null,null,null,null,"031200","Pesca de agua dulce"]
[null,null,null,null,null,null,null,null,null,null,"032110","Cultivo y crianza de peces marinos"]
[null,null,null,null,null,null,null,null,null,null,"032120","Cultivo, reproducción y manejo de algas marinas"]
[null,null,null,null,null,null,null,null,null,null,"032130","Reproducción y cría de moluscos, crustáceos y gusanos marinos"]
[null,null,null,null,null,null,null,null,null,null,"032140","Servicios relacionados con la acuicultura marina"]
[null,null,null,null,null,null,null,null,null,null,"032200","Acuicultura de agua dulce"]
[null,null,null,null,null,null,null,null,null,null,"040000","Extracción y procesamiento de cobre"]
[null,null,null,null,null,null,null,null,null,null,"051000","Extracción de carbón de piedra"]
[null,null,null,null,null,null,null,null,null,null,"052000","Extracción de lignito"]
[null,null,null,null,null,null,null,null,null,null,"061000","Extracción de petróleo crudo"]
[null,null,null,null,null,null,null,null,null,null,"062000","Extracción de gas natural"]
[null,null,null,null,null,null,null,null,null,null,"071000","Extracción de minerales de hierro"]
[null,null,null,null,null,null,null,null,null,null,"072100","Extracción de minerales de uranio y torio"]
[null,null,null,null,null,null,null,null,null,null,"072910","Extracción de oro y plata"]
[null,null,null,null,null,null,null,null,null,null,"072991","Extracción de zinc y plomo"]
[null,null,null,null,null,null,null,null,null,null,"072992","Extracción de manganeso"]
[null,null,null,null,null,null,null,null,null,null,"072999","Extracción de otros minerales metalíferos no ferrosos\nn.c.p. (excepto zinc, plomo y manganeso)"]
[null,null,null,null,null,null,null,null,null,null,"081000","Extracción de piedra, arena y arcilla"]
[null,null,null,null,null,null,null,null,null,null,"089110","Extracción y procesamiento de litio"]
[null,null,null,null,null,null,null,null,null,null,"089190","Extracción de minerales para la fabricación de abonos y productos químicos n.c.p."]
[null,null,null,null,null,null,null,null,null,null,"089200","Extracción de turba"]
[null,null,null,null,null,null,null,null,null,null,"089300","Extracción de sal"]
[null,null,null,null,null,null,null,null,null,null,"089900","Explotación de otras minas y canteras n.c.p."]
[null,null,null,null,null,null,null,null,null,null,"091001","Actividades de apoyo para la extracción de petróleo y gas natural prestados por empresas"]
[null,null,null,null,null,null,null,null,null,null,"091002","Actividades de apoyo para la extracción de petróleo y gas natural prestados por profesionales"]
[null,null,null,null,null,null,null,null,null,null,"099001","Actividades de apoyo para la explotación de otras minas y canteras prestados por empresas"]
[null,null,null,null,null,null,null,null,null,null,"099002","Actividades de apoyo para la explotación de otras minas y canteras prestados por profesionales"]
[null,null,null,null,null,null,null,null,null,null,101011,"Explotación de mataderos de bovinos, ovinos, equinos, caprinos, porcinos y camélidos"]
[null,null,null,null,null,null,null,null,null,null,101019,"Explotación de mataderos de aves y de otros tipos de animales n.c.p."]
[null,null,null,null,null,null,null,null,null,null,101020,"Elaboración y conservación de carne y productos cárnicos"]
[null,null,null,null,null,null,null,null,null,null,102010,"Producción de harina de pescado"]
[null,null,null,null,null,null,null,null,null,null,102020,"Elaboración y conservación de salmónidos"]
[null,null,null,null,null,null,null,null,null,null,102030,"Elaboración y conservación de otros pescados, en plantas en tierra (excepto barcos factoría)"]
[null,null,null,null,null,null,null,null,null,null,102040,"Elaboración y conservación de crustáceos, moluscos y otros productos acuáticos, en plantas en tierra"]
[null,null,null,null,null,null,null,null,null,null,102050,"Actividades de elaboración y conservación de pescado, realizadas en barcos factoría"]
[null,null,null,null,null,null,null,null,null,null,102060,"Elaboración y procesamiento de algas"]
[null,null,null,null,null,null,null,null,null,null,103000,"Elaboración y conservación de frutas, legumbres y hortalizas"]
[null,null,null,null,null,null,null,null,null,null,104000,"Elaboración de aceites y grasas de origen vegetal y animal (excepto elaboración de mantequilla)"]
[null,null,null,null,null,null,null,null,null,null,105000,"Elaboración de productos lácteos"]
[null,null,null,null,null,null,null,null,null,null,106101,"Molienda de trigo: producción de harina, sémola y gránulos"]
[null,null,null,null,null,null,null,null,null,null,106102,"Molienda de arroz; producción de harina de arroz"]
[null,null,null,null,null,null,null,null,null,null,106109,"Elaboración de otros productos de molinería n.c.p."]
[null,null,null,null,null,null,null,null,null,null,106200,"Elaboración de almidones y productos derivados del almidón"]
[null,null,null,null,null,null,null,null,null,null,107100,"Elaboración de productos de panadería y pastelería"]
[null,null,null,null,null,null,null,null,null,null,107200,"Elaboración de azúcar"]
[null,null,null,null,null,null,null,null,null,null,107300,"Elaboración de cacao, chocolate y de productos de confitería"]
[null,null,null,null,null,null,null,null,null,null,107400,"Elaboración de macarrones, fideos, alcuzcuz y productos farináceos similares"]
[null,null,null,null,null,null,null,null,null,null,107500,"Elaboración de comidas y platos preparados envasados, rotulados y con información nutricional"]
[null,null,null,null,null,null,null,null,null,null,107901,"Elaboración de té, café, mate e infusiones de hierbas"]
[null,null,null,null,null,null,null,null,null,null,107902,"Elaboración de levaduras naturales o artificiales"]
[null,null,null,null,null,null,null,null,null,null,107903,"Elaboración de vinagres, mostazas, mayonesas y condimentos en general"]
[null,null,null,null,null,null,null,null,null,null,107909,"Elaboración de otros productos alimenticios n.c.p."]
[null,null,null,null,null,null,null,null,null,null,108000,"Elaboración de piensos preparados para animales"]
[null,null,null,null,null,null,null,null,null,null,110110,"Elaboración de pisco (industrias pisqueras)"]
[null,null,null,null,null,null,null,null,null,null,110120,"Destilación, rectificación y mezclas de bebidas alcohólicas; excepto pisco"]
[null,null,null,null,null,null,null,null,null,null,110200,"Elaboración de vinos"]
[null,null,null,null,null,null,null,null,null,null,110300,"Elaboración de bebidas malteadas y de malta"]
[null,null,null,null,null,null,null,null,null,null,110401,"Elaboración de bebidas no alcohólicas"]
[null,null,null,null,null,null,null,null,null,null,110402,"Producción de aguas minerales y otras aguas embotelladas"]
[null,null,null,null,null,null,null,null,null,null,120001,"Elaboración de cigarros y cigarrillos"]
[null,null,null,null,null,null,null,null,null,null,120009,"Elaboración de otros productos de tabaco n.c.p."]
[null,null,null,null,null,null,null,null,null,null,131100,"Preparación e hilatura de fibras textiles"]
[null,null,null,null,null,null,null,null,null,null,131200,"Tejedura de productos textiles"]
[null,null,null,null,null,null,null,null,null,null,131300,"Acabado de productos textiles"]
[null,null,null,null,null,null,null,null,null,null,139100,"Fabricación de tejidos de punto y ganchillo"]
[null,null,null,null,null,null,null,null,null,null,139200,"Fabricación de artículos confeccionados de materiales textiles, excepto prendas de vestir"]
[null,null,null,null,null,null,null,null,null,null,139300,"Fabricación de tapices y alfombras"]
[null,null,null,null,null,null,null,null,null,null,139400,"Fabricación de cuerdas, cordeles, bramantes y redes"]
[null,null,null,null,null,null,null,null,null,null,139900,"Fabricación de otros productos textiles n.c.p."]
[null,null,null,null,null,null,null,null,null,null,141001,"Fabricación de prendas de vestir de materiales textiles y similares"]
[null,null,null,null,null,null,null,null,null,null,141002,"Fabricación de prendas de vestir de cuero natural o artificial"]
[null,null,null,null,null,null,null,null,null,null,141003,"Fabricación de accesorios de vestir"]
[null,null,null,null,null,null,null,null,null,null,141004,"Fabricación de ropa de trabajo"]
[null,null,null,null,null,null,null,null,null,null,142000,"Fabricación de artículos de piel"]
[null,null,null,null,null,null,null,null,null,null,143000,"Fabricación de artículos de punto y ganchillo"]
[null,null,null,null,null,null,null,null,null,null,151100,"Curtido y adobo de cueros; adobo y teñido de pieles"]
[null,null,null,null,null,null,null,null,null,null,151200,"Fabricación de maletas, bolsos y artículos similares, artículos de talabartería y guarnicionería"]
[null,null,null,null,null,null,null,null,null,null,152000,"Fabricación de calzado"]
[null,null,null,null,null,null,null,null,null,null,161000,"Aserrado y acepilladura de madera"]
[null,null,null,null,null,null,null,null,null,null,162100,"Fabricación de hojas de madera para enchapado y tableros a base de madera"]
[null,null,null,null,null,null,null,null,null,null,162200,"Fabricación de partes y piezas de carpintería para edificios y construcciones"]
[null,null,null,null,null,null,null,null,null,null,162300,"Fabricación de recipientes de madera"]
[null,null,null,null,null,null,null,null,null,null,162900,"Fabricación de otros productos de madera, de artículos de corcho, paja y materiales trenzables"]
[null,null,null,null,null,null,null,null,null,null,170110,"Fabricación de celulosa y otras pastas de madera"]
[null,null,null,null,null,null,null,null,null,null,170190,"Fabricación de papel y cartón para su posterior uso industrial n.c.p."]
[null,null,null,null,null,null,null,null,null,null,170200,"Fabricación de papel y cartón ondulado y de envases de papel y cartón"]
[null,null,null,null,null,null,null,null,null,null,170900,"Fabricación de otros artículos de papel y cartón"]
[null,null,null,null,null,null,null,null,null,null,181101,"Impresión de libros"]
[null,null,null,null,null,null,null,null,null,null,181109,"Otras actividades de impresión n.c.p."]
[null,null,null,null,null,null,null,null,null,null,181200,"Actividades de servicios relacionadas con la impresión"]
[null,null,null,null,null,null,null,null,null,null,182000,"Reproducción de grabaciones"]
[null,null,null,null,null,null,null,null,null,null,191000,"Fabricación de productos de hornos de coque"]
[null,null,null,null,null,null,null,null,null,null,192000,"Fabricación de productos de la refinación del petróleo"]
[null,null,null,null,null,null,null,null,null,null,201101,"Fabricación de carbón vegetal (excepto activado); fabricación de briquetas de carbón vegetal"]
[null,null,null,null,null,null,null,null,null,null,201109,"Fabricación de otras sustancias químicas básicas n.c.p."]
[null,null,null,null,null,null,null,null,null,null,201200,"Fabricación de abonos y compuestos de nitrógeno"]
[null,null,null,null,null,null,null,null,null,null,201300,"Fabricación de plásticos y caucho sintético en formas primarias"]
[null,null,null,null,null,null,null,null,null,null,202100,"Fabricación de plaguicidas y otros productos químicos de uso agropecuario"]
[null,null,null,null,null,null,null,null,null,null,202200,"Fabricación de pinturas, barnices y productos de revestimiento, tintas de imprenta y masillas"]
[null,null,null,null,null,null,null,null,null,null,202300,"Fabricación de jabones y detergentes, preparados para limpiar, perfumes y preparados de tocador"]
[null,null,null,null,null,null,null,null,null,null,202901,"Fabricación de explosivos y productos pirotécnicos"]
[null,null,null,null,null,null,null,null,null,null,202909,"Fabricación de otros productos químicos n.c.p."]
[null,null,null,null,null,null,null,null,null,null,203000,"Fabricación de fibras artificiales"]
[null,null,null,null,null,null,null,null,null,null,210000,"Fabricación de productos farmacéuticos, sustancias químicas medicinales y productos botánicos"]
[null,null,null,null,null,null,null,null,null,null,221100,"Fabricación de cubiertas y cámaras de caucho; recauchutado y renovación de cubiertas de caucho"]
[null,null,null,null,null,null,null,null,null,null,221900,"Fabricación de otros productos de caucho"]
[null,null,null,null,null,null,null,null,null,null,222000,"Fabricación de productos de plástico"]
[null,null,null,null,null,null,null,null,null,null,231001,"Fabricación de vidrio plano"]
[null,null,null,null,null,null,null,null,null,null,231002,"Fabricación de vidrio hueco"]
[null,null,null,null,null,null,null,null,null,null,231003,"Fabricación de fibras de vidrio"]
[null,null,null,null,null,null,null,null,null,null,231009,"Fabricación de productos de vidrio n.c.p."]
[null,null,null,null,null,null,null,null,null,null,239100,"Fabricación de productos refractarios"]
[null,null,null,null,null,null,null,null,null,null,239200,"Fabricación de materiales de construcción de arcilla"]
[null,null,null,null,null,null,null,null,null,null,239300,"Fabricación de otros productos de porcelana y de cerámica"]
[null,null,null,null,null,null,null,null,null,null,239400,"Fabricación de cemento, cal y yeso"]
[null,null,null,null,null,null,null,null,null,null,239500,"Fabricación de artículos de hormigón, cemento y yeso"]
[null,null,null,null,null,null,null,null,null,null,239600,"Corte, talla y acabado de la piedra"]
[null,null,null,null,null,null,null,null,null,null,239900,"Fabricación de otros productos minerales no metálicos n.c.p."]
[null,null,null,null,null,null,null,null,null,null,241000,"Industrias básicas de hierro y acero"]
[null,null,null,null,null,null,null,null,null,null,242001,"Fabricación de productos primarios de cobre"]
[null,null,null,null,null,null,null,null,null,null,242002,"Fabricación de productos primarios de aluminio"]
[null,null,null,null,null,null,null,null,null,null,242009,"Fabricación de productos primarios de metales preciosos y de otros metales no ferrosos n.c.p."]
[null,null,null,null,null,null,null,null,null,null,243100,"Fundición de hierro y acero"]
[null,null,null,null,null,null,null,null,null,null,243200,"Fundición de metales no ferrosos"]
[null,null,null,null,null,null,null,null,null,null,251100,"Fabricación de productos metálicos para uso estructural"]
[null,null,null,null,null,null,null,null,null,null,251201,"Fabricación de recipientes de metal para gases comprimidos o licuados"]
[null,null,null,null,null,null,null,null,null,null,251209,"Fabricación de tanques, depósitos y recipientes de metal n.c.p."]
[null,null,null,null,null,null,null,null,null,null,251300,"Fabricación de generadores de vapor, excepto calderas de agua caliente para calefacción central"]
[null,null,null,null,null,null,null,null,null,null,252000,"Fabricación de armas y municiones"]
[null,null,null,null,null,null,null,null,null,null,259100,"Forja, prensado, estampado y laminado de metales; pulvimetalurgia"]
[null,null,null,null,null,null,null,null,null,null,259200,"Tratamiento y revestimiento de metales; maquinado"]
[null,null,null,null,null,null,null,null,null,null,259300,"Fabricación de artículos de cuchillería, herramientas de mano y artículos de ferretería"]
[null,null,null,null,null,null,null,null,null,null,259900,"Fabricación de otros productos elaborados de metal n.c.p."]
[null,null,null,null,null,null,null,null,null,null,261000,"Fabricación de componentes y tableros electrónicos"]
[null,null,null,null,null,null,null,null,null,null,262000,"Fabricación de computadores y equipo periférico"]
[null,null,null,null,null,null,null,null,null,null,263000,"Fabricación de equipo de comunicaciones"]
[null,null,null,null,null,null,null,null,null,null,264000,"Fabricación de aparatos electrónicos de consumo"]
[null,null,null,null,null,null,null,null,null,null,265100,"Fabricación de equipo de medición, prueba, navegación y control"]
[null,null,null,null,null,null,null,null,null,null,265200,"Fabricación de relojes"]
[null,null,null,null,null,null,null,null,null,null,266000,"Fabricación de equipo de irradiación y equipo electrónico de uso médico y terapéutico"]
[null,null,null,null,null,null,null,null,null,null,267000,"Fabricación de instrumentos ópticos y equipo fotográfico"]
[null,null,null,null,null,null,null,null,null,null,268000,"Fabricación de soportes magnéticos y ópticos"]
[null,null,null,null,null,null,null,null,null,null,271000,"Fabricación de motores, generadores y transformadores eléctricos, aparatos de distribución y\ncontrol"]
[null,null,null,null,null,null,null,null,null,null,272000,"Fabricación de pilas, baterías y acumuladores"]
[null,null,null,null,null,null,null,null,null,null,273100,"Fabricación de cables de fibra óptica"]
[null,null,null,null,null,null,null,null,null,null,273200,"Fabricación de otros hilos y cables eléctricos"]
[null,null,null,null,null,null,null,null,null,null,273300,"Fabricación de dispositivos de cableado"]
[null,null,null,null,null,null,null,null,null,null,274000,"Fabricación de equipo eléctrico de iluminación"]
[null,null,null,null,null,null,null,null,null,null,275000,"Fabricación de aparatos de uso doméstico"]
[null,null,null,null,null,null,null,null,null,null,279000,"Fabricación de otros tipos de equipo eléctrico"]
[null,null,null,null,null,null,null,null,null,null,281100,"Fabricación de motores y turbinas, excepto para aeronaves, vehículos automotores y motocicletas"]
[null,null,null,null,null,null,null,null,null,null,281200,"Fabricación de equipo de propulsión de fluidos"]
[null,null,null,null,null,null,null,null,null,null,281300,"Fabricación de otras bombas, compresores, grifos y válvulas"]
[null,null,null,null,null,null,null,null,null,null,281400,"Fabricación de cojinetes, engranajes, trenes de engranajes y piezas de transmisión"]
[null,null,null,null,null,null,null,null,null,null,281500,"Fabricación de hornos, calderas y quemadores"]
[null,null,null,null,null,null,null,null,null,null,281600,"Fabricación de equipo de elevación y manipulación"]
[null,null,null,null,null,null,null,null,null,null,281700,"Fabricación de maquinaria y equipo de oficina (excepto computadores y equipo periférico)"]
[null,null,null,null,null,null,null,null,null,null,281800,"Fabricación de herramientas de mano motorizadas"]
[null,null,null,null,null,null,null,null,null,null,281900,"Fabricación de otros tipos de maquinaria de uso general"]
[null,null,null,null,null,null,null,null,null,null,282100,"Fabricación de maquinaria agropecuaria y forestal"]
[null,null,null,null,null,null,null,null,null,null,282200,"Fabricación de maquinaria para la conformación de metales y de máquinas herramienta"]
[null,null,null,null,null,null,null,null,null,null,282300,"Fabricación de maquinaria metalúrgica"]
[null,null,null,null,null,null,null,null,null,null,282400,"Fabricación de maquinaria para la explotación de minas y canteras y para obras de construcción"]
[null,null,null,null,null,null,null,null,null,null,282500,"Fabricación de maquinaria para la elaboración de alimentos, bebidas y tabaco"]
[null,null,null,null,null,null,null,null,null,null,282600,"Fabricación de maquinaria para la elaboración de productos textiles, prendas de vestir y cueros"]
[null,null,null,null,null,null,null,null,null,null,282900,"Fabricación de otros tipos de maquinaria de uso especial"]
[null,null,null,null,null,null,null,null,null,null,291000,"Fabricación de vehículos automotores"]
[null,null,null,null,null,null,null,null,null,null,292000,"Fabricación de carrocerías para vehículos automotores; fabricación de remolques y semirremolques"]
[null,null,null,null,null,null,null,null,null,null,293000,"Fabricación de partes, piezas y accesorios para vehículos automotores"]
[null,null,null,null,null,null,null,null,null,null,301100,"Construcción de buques, embarcaciones menores y estructuras flotantes"]
[null,null,null,null,null,null,null,null,null,null,301200,"Construcción de embarcaciones de recreo y de deporte"]
[null,null,null,null,null,null,null,null,null,null,302000,"Fabricación de locomotoras y material rodante"]
[null,null,null,null,null,null,null,null,null,null,303000,"Fabricación de aeronaves, naves espaciales y maquinaria conexa"]
[null,null,null,null,null,null,null,null,null,null,304000,"Fabricación de vehículos militares de combate"]
[null,null,null,null,null,null,null,null,null,null,309100,"Fabricación de motocicletas"]
[null,null,null,null,null,null,null,null,null,null,309200,"Fabricación de bicicletas y de sillas de ruedas"]
[null,null,null,null,null,null,null,null,null,null,309900,"Fabricación de otros tipos de equipo de transporte n.c.p."]
[null,null,null,null,null,null,null,null,null,null,310001,"Fabricación de muebles principalmente de madera"]
[null,null,null,null,null,null,null,null,null,null,310009,"Fabricación de colchones; fabricación de otros muebles n.c.p."]
[null,null,null,null,null,null,null,null,null,null,321100,"Fabricación de joyas y artículos conexos"]
[null,null,null,null,null,null,null,null,null,null,321200,"Fabricación de bisutería y artículos conexos"]
[null,null,null,null,null,null,null,null,null,null,322000,"Fabricación de instrumentos musicales"]
[null,null,null,null,null,null,null,null,null,null,323000,"Fabricación de artículos de deporte"]
[null,null,null,null,null,null,null,null,null,null,324000,"Fabricación de juegos y juguetes"]
[null,null,null,null,null,null,null,null,null,null,325001,"Actividades de laboratorios dentales"]
[null,null,null,null,null,null,null,null,null,null,325009,"Fabricación de instrumentos y materiales médicos, oftalmológicos y odontológicos n.c.p."]
[null,null,null,null,null,null,null,null,null,null,329000,"Otras industrias manufactureras n.c.p."]
[null,null,null,null,null,null,null,null,null,null,331100,"Reparación de productos elaborados de metal"]
[null,null,null,null,null,null,null,null,null,null,331201,"Reparación de maquinaria agropecuaria y forestal"]
[null,null,null,null,null,null,null,null,null,null,331202,"Reparación de maquinaria metalúrgica, para la minería, extracción de petróleo y para la construcción"]
[null,null,null,null,null,null,null,null,null,null,331203,"Reparación de maquinaria para la elaboración de alimentos, bebidas y tabaco"]
[null,null,null,null,null,null,null,null,null,null,331204,"Reparación de maquinaria para producir textiles, prendas de vestir, artículos de cuero y calzado"]
[null,null,null,null,null,null,null,null,null,null,331209,"Reparación de otro tipo de maquinaria y equipos industriales n.c.p."]
[null,null,null,null,null,null,null,null,null,null,331301,"Reparación de equipo de medición, prueba, navegación y control"]
[null,null,null,null,null,null,null,null,null,null,331309,"Reparación de otros equipos electrónicos y ópticos n.c.p."]
[null,null,null,null,null,null,null,null,null,null,331400,"Reparación de equipo eléctrico (excepto reparación de equipo y enseres domésticos)"]
[null,null,null,null,null,null,null,null,null,null,331501,"Reparación de buques, embarcaciones menores y estructuras flotantes"]
[null,null,null,null,null,null,null,null,null,null,331502,"Reparación de aeronaves y naves espaciales"]
[null,null,null,null,null,null,null,null,null,null,331509,"Reparación de otros equipos de transporte n.c.p., excepto vehículos automotores"]
[null,null,null,null,null,null,null,null,null,null,331900,"Reparación de otros tipos de equipo"]
[null,null,null,null,null,null,null,null,null,null,332000,"Instalación de maquinaria y equipos industriales"]
[null,null,null,null,null,null,null,null,null,null,351011,"Generación de energía eléctrica en centrales hidroeléctricas"]
[null,null,null,null,null,null,null,null,null,null,351012,"Generación de energía eléctrica en centrales termoeléctricas"]
[null,null,null,null,null,null,null,null,null,null,351019,"Generación de energía eléctrica en otras centrales n.c.p."]
[null,null,null,null,null,null,null,null,null,null,351020,"Transmisión de energía eléctrica"]
[null,null,null,null,null,null,null,null,null,null,351030,"Distribución de energía eléctrica"]
[null,null,null,null,null,null,null,null,null,null,352010,"Regasificación de Gas Natural Licuado (GNL)"]
[null,null,null,null,null,null,null,null,null,null,352020,"Fabricación de gas; distribución de combustibles gaseosos por tubería, excepto regasificación de GNL"]
[null,null,null,null,null,null,null,null,null,null,353001,"Suministro de vapor y de aire acondicionado"]
[null,null,null,null,null,null,null,null,null,null,353002,"Elaboración de hielo (excepto fabricación de hielo seco)"]
[null,null,null,null,null,null,null,null,null,null,360000,"Captación, tratamiento y distribución de agua"]
[null,null,null,null,null,null,null,null,null,null,370000,"Evacuación y tratamiento de aguas servidas"]
[null,null,null,null,null,null,null,null,null,null,381100,"Recogida de desechos no peligrosos"]
[null,null,null,null,null,null,null,null,null,null,381200,"Recogida de desechos peligrosos"]
[null,null,null,null,null,null,null,null,null,null,382100,"Tratamiento y eliminación de desechos no peligrosos"]
[null,null,null,null,null,null,null,null,null,null,382200,"Tratamiento y eliminación de desechos peligrosos"]
[null,null,null,null,null,null,null,null,null,null,383001,"Recuperación y reciclamiento de desperdicios y desechos metálicos"]
[null,null,null,null,null,null,null,null,null,null,383002,"Recuperación y reciclamiento de papel"]
[null,null,null,null,null,null,null,null,null,null,383003,"Recuperación y reciclamiento de vidrio"]
[null,null,null,null,null,null,null,null,null,null,383009,"Recuperación y reciclamiento de otros desperdicios y desechos n.c.p."]
[null,null,null,null,null,null,null,null,null,null,390000,"Actividades de descontaminación y otros servicios de gestión de desechos"]
[null,null,null,null,null,null,null,null,null,null,410010,"Construcción de edificios para uso residencial"]
[null,null,null,null,null,null,null,null,null,null,410020,"Construcción de edificios para uso no residencial"]
[null,null,null,null,null,null,null,null,null,null,421000,"Construcción de carreteras y líneas de ferrocarril"]
[null,null,null,null,null,null,null,null,null,null,422000,"Construcción de proyectos de servicio público"]
[null,null,null,null,null,null,null,null,null,null,429000,"Construcción de otras obras de ingeniería civil"]
[null,null,null,null,null,null,null,null,null,null,431100,"Demolición"]
[null,null,null,null,null,null,null,null,null,null,431200,"Preparación del terreno"]
[null,null,null,null,null,null,null,null,null,null,432100,"Instalaciones eléctricas"]
[null,null,null,null,null,null,null,null,null,null,432200,"Instalaciones de gasfitería, calefacción y aire acondicionado"]
[null,null,null,null,null,null,null,null,null,null,432900,"Otras instalaciones para obras de construcción"]
[null,null,null,null,null,null,null,null,null,null,433000,"Terminación y acabado de edificios"]
[null,null,null,null,null,null,null,null,null,null,439000,"Otras actividades especializadas de construcción"]
[null,null,null,null,null,null,null,null,null,null,451001,"Venta al por mayor de vehículos automotores"]
[null,null,null,null,null,null,null,null,null,null,451002,"Venta al por menor de vehículos automotores nuevos o usados (incluye compraventa)"]
[null,null,null,null,null,null,null,null,null,null,452001,"Servicio de lavado de vehículos automotores"]
[null,null,null,null,null,null,null,null,null,null,452002,"Mantenimiento y reparación de vehículos automotores"]
[null,null,null,null,null,null,null,null,null,null,453000,"Venta de partes, piezas y accesorios para vehículos automotores"]
[null,null,null,null,null,null,null,null,null,null,454001,"Venta de motocicletas"]
[null,null,null,null,null,null,null,null,null,null,454002,"Venta de partes, piezas y accesorios de motocicletas"]
[null,null,null,null,null,null,null,null,null,null,454003,"Mantenimiento y reparación de motocicletas"]
[null,null,null,null,null,null,null,null,null,null,461001,"Corretaje al por mayor de productos agrícolas"]
[null,null,null,null,null,null,null,null,null,null,461002,"Corretaje al por mayor de ganado"]
[null,null,null,null,null,null,null,null,null,null,461009,"Otros tipos de corretajes o remates al por mayor n.c.p."]
[null,null,null,null,null,null,null,null,null,null,462010,"Venta al por mayor de materias primas agrícolas"]
[null,null,null,null,null,null,null,null,null,null,462020,"Venta al por mayor de animales vivos"]
[null,null,null,null,null,null,null,null,null,null,462090,"Venta al por mayor de otras materias primas agropecuarias n.c.p."]
[null,null,null,null,null,null,null,null,null,null,463011,"Venta al por mayor de frutas y verduras"]
[null,null,null,null,null,null,null,null,null,null,463012,"Venta al por mayor de carne y productos cárnicos"]
[null,null,null,null,null,null,null,null,null,null,463013,"Venta al por mayor de productos del mar (pescados, mariscos y algas)"]
[null,null,null,null,null,null,null,null,null,null,463014,"Venta al por mayor de productos de confitería"]
[null,null,null,null,null,null,null,null,null,null,463019,"Venta al por mayor de huevos, lácteos, abarrotes y de otros alimentos n.c.p."]
[null,null,null,null,null,null,null,null,null,null,463020,"Venta al por mayor de bebidas alcohólicas y no alcohólicas"]
[null,null,null,null,null,null,null,null,null,null,463030,"Venta al por mayor de tabaco"]
[null,null,null,null,null,null,null,null,null,null,464100,"Venta al por mayor de productos textiles, prendas de\nvestir y calzado"]
[null,null,null,null,null,null,null,null,null,null,464901,"Venta al por mayor de muebles, excepto muebles de oficina"]
[null,null,null,null,null,null,null,null,null,null,464902,"Venta al por mayor de artículos eléctricos y\nelectrónicos para el hogar"]
[null,null,null,null,null,null,null,null,null,null,464903,"Venta al por mayor de artículos de perfumería, de tocador y cosméticos"]
[null,null,null,null,null,null,null,null,null,null,464904,"Venta al por mayor de artículos de papelería y\nescritorio"]
[null,null,null,null,null,null,null,null,null,null,464905,"Venta al por mayor de libros"]
[null,null,null,null,null,null,null,null,null,null,464906,"Venta al por mayor de diarios y revistas"]
[null,null,null,null,null,null,null,null,null,null,464907,"Venta al por mayor de productos farmacéuticos y medicinales"]
[null,null,null,null,null,null,null,null,null,null,464908,"Venta al por mayor de instrumentos científicos y quirúrgicos"]
[null,null,null,null,null,null,null,null,null,null,464909,"Venta al por mayor de otros enseres domésticos n.c.p."]
[null,null,null,null,null,null,null,null,null,null,465100,"Venta al por mayor de computadores, equipo periférico y programas informáticos"]
[null,null,null,null,null,null,null,null,null,null,465200,"Venta al por mayor de equipo, partes y piezas electrónicos y de telecomunicaciones"]
[null,null,null,null,null,null,null,null,null,null,465300,"Venta al por mayor de maquinaria, equipo y materiales agropecuarios"]
[null,null,null,null,null,null,null,null,null,null,465901,"Venta al por mayor de maquinaria metalúrgica, para la minería, extracción de petróleo y construcción"]
[null,null,null,null,null,null,null,null,null,null,465902,"Venta al por mayor de maquinaria para la elaboración de alimentos, bebidas y tabaco"]
[null,null,null,null,null,null,null,null,null,null,465903,"Venta al por mayor de maquinaria para la industria textil, del cuero y del calzado"]
[null,null,null,null,null,null,null,null,null,null,465904,"Venta al por mayor de maquinaria y equipo de oficina; venta al por mayor de muebles de oficina"]
[null,null,null,null,null,null,null,null,null,null,465905,"Venta al por mayor de equipo de transporte(excepto vehículos automotores, motocicletas y bicicletas)"]
[null,null,null,null,null,null,null,null,null,null,465909,"Venta al por mayor de otros tipos de maquinaria y equipo n.c.p."]
[null,null,null,null,null,null,null,null,null,null,466100,"Venta al por mayor de combustibles sólidos, líquidos y gaseosos y productos conexos"]
[null,null,null,null,null,null,null,null,null,null,466200,"Venta al por mayor de metales y minerales metalíferos"]
[null,null,null,null,null,null,null,null,null,null,466301,"Venta al por mayor de madera en bruto y productos primarios de la elaboración de madera"]
[null,null,null,null,null,null,null,null,null,null,466302,"Venta al por mayor de materiales de construcción, artículos de ferretería, gasfitería y calefacción"]
[null,null,null,null,null,null,null,null,null,null,466901,"Venta al por mayor de productos químicos"]
[null,null,null,null,null,null,null,null,null,null,466902,"Venta al por mayor de desechos metálicos (chatarra)"]
[null,null,null,null,null,null,null,null,null,null,466909,"Venta al por mayor de desperdicios, desechos y otros productos n.c.p."]
[null,null,null,null,null,null,null,null,null,null,469000,"Venta al por mayor no especializada"]
[null,null,null,null,null,null,null,null,null,null,471100,"Venta al por menor en comercios de alimentos, bebidas o tabaco (supermercados e hipermercados)"]
[null,null,null,null,null,null,null,null,null,null,471910,"Venta al por menor en comercios de vestuario y productos para el hogar (grandes tiendas)"]
[null,null,null,null,null,null,null,null,null,null,471990,"Otras actividades de venta al por menor en comercios no especializados n.c.p."]
[null,null,null,null,null,null,null,null,null,null,472101,"Venta al por menor de alimentos en comercios especializados (almacenes pequeños y minimarket)"]
[null,null,null,null,null,null,null,null,null,null,472102,"Venta al por menor en comercios especializados de carne y productos cárnicos"]
[null,null,null,null,null,null,null,null,null,null,472103,"Venta al por menor en comercios especializados de frutas y verduras (verdulerías)"]
[null,null,null,null,null,null,null,null,null,null,472104,"Venta al por menor en comercios especializados de pescado, mariscos y productos conexos"]
[null,null,null,null,null,null,null,null,null,null,472105,"Venta al por menor en comercios especializados de productos de panadería y pastelería"]
[null,null,null,null,null,null,null,null,null,null,472109,"Venta al por menor en comercios especializados de huevos, confites y productos alimenticios n.c.p."]
[null,null,null,null,null,null,null,null,null,null,472200,"Venta al por menor de bebidas alcohólicas y no alcohólicas en comercios especializados (botillerías)"]
[null,null,null,null,null,null,null,null,null,null,472300,"Venta al por menor de tabaco y productos de tabaco en comercios especializados"]
[null,null,null,null,null,null,null,null,null,null,473000,"Venta al por menor de combustibles para vehículos automotores en comercios especializados"]
[null,null,null,null,null,null,null,null,null,null,474100,"Venta al por menor de computadores, equipo periférico, programas informáticos y equipo de telecom."]
[null,null,null,null,null,null,null,null,null,null,474200,"Venta al por menor de equipo de sonido y de video en comercios especializados"]
[null,null,null,null,null,null,null,null,null,null,475100,"Venta al por menor de telas, lanas, hilos y similares en comercios especializados"]
[null,null,null,null,null,null,null,null,null,null,475201,"Venta al por menor de artículos de ferretería y materiales de construcción"]
[null,null,null,null,null,null,null,null,null,null,475202,"Venta al por menor de pinturas, barnices y lacas en comercios especializados"]
[null,null,null,null,null,null,null,null,null,null,475203,"Venta al por menor de productos de vidrio en comercios especializados"]
[null,null,null,null,null,null,null,null,null,null,475300,"Venta al por menor de tapices, alfombras y cubrimientos para paredes y pisos"]
[null,null,null,null,null,null,null,null,null,null,475901,"Venta al por menor de muebles y colchones en comercios especializados"]
[null,null,null,null,null,null,null,null,null,null,475902,"Venta al por menor de instrumentos musicales en comercios especializados"]
[null,null,null,null,null,null,null,null,null,null,475909,"Venta al por menor de aparatos eléctricos, textiles para el hogar y otros enseres domésticos n.c.p."]
[null,null,null,null,null,null,null,null,null,null,476101,"Venta al por menor de libros en comercios especializados"]
[null,null,null,null,null,null,null,null,null,null,476102,"Venta al por menor de diarios y revistas en comercios especializados"]
[null,null,null,null,null,null,null,null,null,null,476103,"Venta al por menor de artículos de papelería y escritorio en comercios especializados"]
[null,null,null,null,null,null,null,null,null,null,476200,"Venta al por menor de grabaciones de música y de video en comercios especializados"]
[null,null,null,null,null,null,null,null,null,null,476301,"Venta al por menor de artículos de caza y pesca en comercios especializados"]
[null,null,null,null,null,null,null,null,null,null,476302,"Venta al por menor de bicicletas y sus repuestos en comercios especializados"]
[null,null,null,null,null,null,null,null,null,null,476309,"Venta al por menor de otros artículos y equipos de deporte n.c.p."]
[null,null,null,null,null,null,null,null,null,null,476400,"Venta al por menor de juegos y juguetes en comercios especializados"]
[null,null,null,null,null,null,null,null,null,null,477101,"Venta al por menor de calzado en comercios especializados"]
[null,null,null,null,null,null,null,null,null,null,477102,"Venta al por menor de prendas y accesorios de vestir en comercios especializados"]
[null,null,null,null,null,null,null,null,null,null,477103,"Venta al por menor de carteras, maletas y otros accesorios de viaje en comercios especializados"]
[null,null,null,null,null,null,null,null,null,null,477201,"Venta al por menor de productos farmacéuticos y medicinales en comercios especializados"]
[null,null,null,null,null,null,null,null,null,null,477202,"Venta al por menor de artículos ortopédicos en comercios especializados"]
[null,null,null,null,null,null,null,null,null,null,477203,"Venta al por menor de artículos de perfumería, de tocador y cosméticos en comercios especializados"]
[null,null,null,null,null,null,null,null,null,null,477310,"Venta al por menor de gas licuado en bombonas (cilindros) en comercios especializados"]
[null,null,null,null,null,null,null,null,null,null,477391,"Venta al por menor de alimento y accesorios para mascotas en comercios especializados"]
[null,null,null,null,null,null,null,null,null,null,477392,"Venta al por menor de armas y municiones en comercios especializados"]
[null,null,null,null,null,null,null,null,null,null,477393,"Venta al por menor de artículos ópticos en comercios especializados"]
[null,null,null,null,null,null,null,null,null,null,477394,"Venta al por menor de artículos de joyería, bisutería y relojería en comercios especializados"]
[null,null,null,null,null,null,null,null,null,null,477395,"Venta al por menor de carbón, leña y otros combustibles de uso doméstico en comercios especializados"]
[null,null,null,null,null,null,null,null,null,null,477396,"Venta al por menor de recuerdos, artesanías y\nartículos religiosos en comercios especializados"]
[null,null,null,null,null,null,null,null,null,null,477397,"Venta al por menor de flores, plantas, arboles, semillas y abonos en comercios especializados"]
[null,null,null,null,null,null,null,null,null,null,477398,"Venta al por menor de mascotas en comercios especializados"]
[null,null,null,null,null,null,null,null,null,null,477399,"Venta al por menor de otros productos en comercios especializados n.c.p."]
[null,null,null,null,null,null,null,null,null,null,477401,"Venta al por menor de antigüedades en comercios"]
[null,null,null,null,null,null,null,null,null,null,477402,"Venta al por menor de ropa usada en comercios"]
[null,null,null,null,null,null,null,null,null,null,477409,"Venta al por menor de otros artículos de segunda mano en comercios n.c.p."]
[null,null,null,null,null,null,null,null,null,null,478100,"Venta al por menor de alimentos, bebidas y tabaco en puestos de venta y mercados (incluye ferias)"]
[null,null,null,null,null,null,null,null,null,null,478200,"Venta al por menor de productos textiles, prendas de vestir y calzado en puestos de venta y mercados"]
[null,null,null,null,null,null,null,null,null,null,478900,"Venta al por menor de otros productos en puestos de venta y mercados (incluye ferias)"]
[null,null,null,null,null,null,null,null,null,null,479100,"Venta al por menor por correo, por Internet y vía telefónica"]
[null,null,null,null,null,null,null,null,null,null,479901,"Venta al por menor realizada por independientes en la locomoción colectiva (Ley 20.388)"]
[null,null,null,null,null,null,null,null,null,null,479902,"Venta al por menor mediante máquinas expendedoras"]
[null,null,null,null,null,null,null,null,null,null,479903,"Venta al por menor por comisionistas (no dependientes de comercios)"]
[null,null,null,null,null,null,null,null,null,null,479909,"Otras actividades de venta por menor no realizadas en comercios, puestos de venta o mercados n.c.p."]
[null,null,null,null,null,null,null,null,null,null,491100,"Transporte interurbano de pasajeros por ferrocarril"]
[null,null,null,null,null,null,null,null,null,null,491200,"Transporte de carga por ferrocarril"]
[null,null,null,null,null,null,null,null,null,null,492110,"Transporte urbano y suburbano de pasajeros vía\nmetro y metrotren"]
[null,null,null,null,null,null,null,null,null,null,492120,"Transporte urbano y suburbano de pasajeros vía locomoción colectiva"]
[null,null,null,null,null,null,null,null,null,null,492130,"Transporte de pasajeros vía taxi colectivo"]
[null,null,null,null,null,null,null,null,null,null,492190,"Otras actividades de transporte urbano y suburbano de pasajeros por vía terrestre n.c.p."]
[null,null,null,null,null,null,null,null,null,null,492210,"Servicios de transporte de escolares"]
[null,null,null,null,null,null,null,null,null,null,492220,"Servicios de transporte de trabajadores"]
[null,null,null,null,null,null,null,null,null,null,492230,"Servicios de transporte de pasajeros en taxis libres y radiotaxis"]
[null,null,null,null,null,null,null,null,null,null,492240,"Servicios de transporte a turistas"]
[null,null,null,null,null,null,null,null,null,null,492250,"Transporte de pasajeros en buses interurbanos"]
[null,null,null,null,null,null,null,null,null,null,492290,"Otras actividades de transporte de pasajeros por vía terrestre n.c.p."]
[null,null,null,null,null,null,null,null,null,null,492300,"Transporte de carga por carretera"]
[null,null,null,null,null,null,null,null,null,null,493010,"Transporte por oleoductos"]
[null,null,null,null,null,null,null,null,null,null,493020,"Transporte por gasoductos"]
[null,null,null,null,null,null,null,null,null,null,493090,"Otras actividades de transporte por tuberías n.c.p."]
[null,null,null,null,null,null,null,null,null,null,501100,"Transporte de pasajeros marítimo y de cabotaje"]
[null,null,null,null,null,null,null,null,null,null,501200,"Transporte de carga marítimo y de cabotaje"]
[null,null,null,null,null,null,null,null,null,null,502100,"Transporte de pasajeros por vías de navegación interiores"]
[null,null,null,null,null,null,null,null,null,null,502200,"Transporte de carga por vías de navegación interiores"]
[null,null,null,null,null,null,null,null,null,null,511000,"Transporte de pasajeros por vía aérea"]
[null,null,null,null,null,null,null,null,null,null,512000,"Transporte de carga por vía aérea"]
[null,null,null,null,null,null,null,null,null,null,521001,"Explotación de frigoríficos para almacenamiento y depósito"]
[null,null,null,null,null,null,null,null,null,null,521009,"Otros servicios de almacenamiento y depósito n.c.p."]
[null,null,null,null,null,null,null,null,null,null,522110,"Explotación de terminales terrestres de pasajeros"]
[null,null,null,null,null,null,null,null,null,null,522120,"Explotación de estacionamientos de vehículos automotores y parquímetros"]
[null,null,null,null,null,null,null,null,null,null,522130,"Servicios prestados por concesionarios de carreteras"]
[null,null,null,null,null,null,null,null,null,null,522190,"Actividades de servicios vinculadas al transporte terrestre n.c.p."]
[null,null,null,null,null,null,null,null,null,null,522200,"Actividades de servicios vinculadas al transporte acuático"]
[null,null,null,null,null,null,null,null,null,null,522300,"Actividades de servicios vinculadas al transporte aéreo"]
[null,null,null,null,null,null,null,null,null,null,522400,"Manipulación de la carga"]
[null,null,null,null,null,null,null,null,null,null,522910,"Agencias de aduanas"]
[null,null,null,null,null,null,null,null,null,null,522920,"Agencias de naves"]
[null,null,null,null,null,null,null,null,null,null,522990,"Otras actividades de apoyo al transporte n.c.p."]
[null,null,null,null,null,null,null,null,null,null,531000,"Actividades postales"]
[null,null,null,null,null,null,null,null,null,null,532000,"Actividades de mensajería"]
[null,null,null,null,null,null,null,null,null,null,551001,"Actividades de hoteles"]
[null,null,null,null,null,null,null,null,null,null,551002,"Actividades de moteles"]
[null,null,null,null,null,null,null,null,null,null,551003,"Actividades de residenciales para turistas"]
[null,null,null,null,null,null,null,null,null,null,551009,"Otras actividades de alojamiento para turistas n.c.p."]
[null,null,null,null,null,null,null,null,null,null,552000,"Actividades de camping y de parques para casas rodantes"]
[null,null,null,null,null,null,null,null,null,null,559001,"Actividades de residenciales para estudiantes y trabajadores"]
[null,null,null,null,null,null,null,null,null,null,559009,"Otras actividades de alojamiento n.c.p."]
[null,null,null,null,null,null,null,null,null,null,561000,"Actividades de restaurantes y de servicio móvil de comidas"]
[null,null,null,null,null,null,null,null,null,null,562100,"Suministro de comidas por encargo (Servicios de banquetería)"]
[null,null,null,null,null,null,null,null,null,null,562900,"Suministro industrial de comidas por encargo; concesión de servicios de alimentación"]
[null,null,null,null,null,null,null,null,null,null,563001,"Actividades de discotecas y cabaret (night club), con predominio del servicio de bebidas"]
[null,null,null,null,null,null,null,null,null,null,563009,"Otras actividades de servicio de bebidas n.c.p."]
[null,null,null,null,null,null,null,null,null,null,581100,"Edición de libros"]
[null,null,null,null,null,null,null,null,null,null,581200,"Edición de directorios y listas de correo"]
[null,null,null,null,null,null,null,null,null,null,581300,"Edición de diarios, revistas y otras publicaciones periódicas"]
[null,null,null,null,null,null,null,null,null,null,581900,"Otras actividades de edición"]
[null,null,null,null,null,null,null,null,null,null,582000,"Edición de programas informáticos"]
[null,null,null,null,null,null,null,null,null,null,591100,"Actividades de producción de películas cinematográficas, videos y programas de televisión"]
[null,null,null,null,null,null,null,null,null,null,591200,"Actividades de postproducción de películas cinematográficas, videos y programas de televisión"]
[null,null,null,null,null,null,null,null,null,null,591300,"Actividades de distribución de películas cinematográficas, videos y programas de televisión"]
[null,null,null,null,null,null,null,null,null,null,591400,"Actividades de exhibición de películas cinematográficas y cintas de video"]
[null,null,null,null,null,null,null,null,null,null,592000,"Actividades de grabación de sonido y edición de música"]
[null,null,null,null,null,null,null,null,null,null,601000,"Transmisiones de radio"]
[null,null,null,null,null,null,null,null,null,null,602000,"Programación y transmisiones de televisión"]
[null,null,null,null,null,null,null,null,null,null,611010,"Telefonía fija"]
[null,null,null,null,null,null,null,null,null,null,611020,"Telefonía larga distancia"]
[null,null,null,null,null,null,null,null,null,null,611030,"Televisión de pago por cable"]
[null,null,null,null,null,null,null,null,null,null,611090,"Otros servicios de telecomunicaciones alámbricas n.c.p."]
[null,null,null,null,null,null,null,null,null,null,612010,"Telefonía móvil celular"]
[null,null,null,null,null,null,null,null,null,null,612020,"Radiocomunicaciones móviles"]
[null,null,null,null,null,null,null,null,null,null,612030,"Televisión de pago inalámbrica"]
[null,null,null,null,null,null,null,null,null,null,612090,"Otros servicios de telecomunicaciones inalámbricas n.c.p."]
[null,null,null,null,null,null,null,null,null,null,613010,"Telefonía móvil satelital"]
[null,null,null,null,null,null,null,null,null,null,613020,"Televisión de pago satelital"]
[null,null,null,null,null,null,null,null,null,null,613090,"Otros servicios de telecomunicaciones por satélite n.c.p."]
[null,null,null,null,null,null,null,null,null,null,619010,"Centros de llamados y centros de acceso a Internet"]
[null,null,null,null,null,null,null,null,null,null,619090,"Otras actividades de telecomunicaciones n.c.p."]
[null,null,null,null,null,null,null,null,null,null,620100,"Actividades de programación informática"]
[null,null,null,null,null,null,null,null,null,null,620200,"Actividades de consultoría de informática y de gestión de instalaciones informáticas"]
[null,null,null,null,null,null,null,null,null,null,620900,"Otras actividades de tecnología de la información y de servicios informáticos"]
[null,null,null,null,null,null,null,null,null,null,631100,"Procesamiento de datos, hospedaje y actividades conexas"]
[null,null,null,null,null,null,null,null,null,null,631200,"Portales web"]
[null,null,null,null,null,null,null,null,null,null,639100,"Actividades de agencias de noticias"]
[null,null,null,null,null,null,null,null,null,null,639900,"Otras actividades de servicios de información n.c.p."]
[null,null,null,null,null,null,null,null,null,null,641100,"Banca central"]
[null,null,null,null,null,null,null,null,null,null,641910,"Actividades bancarias"]
[null,null,null,null,null,null,null,null,null,null,641990,"Otros tipos de intermediación monetaria n.c.p."]
[null,null,null,null,null,null,null,null,null,null,642000,"Actividades de sociedades de cartera"]
[null,null,null,null,null,null,null,null,null,null,643000,"Fondos y sociedades de inversión y entidades financieras similares"]
[null,null,null,null,null,null,null,null,null,null,649100,"Leasing financiero"]
[null,null,null,null,null,null,null,null,null,null,649201,"Financieras"]
[null,null,null,null,null,null,null,null,null,null,649202,"Actividades de crédito prendario"]
[null,null,null,null,null,null,null,null,null,null,649203,"Cajas de compensación"]
[null,null,null,null,null,null,null,null,null,null,649209,"Otras actividades de concesión de crédito n.c.p."]
[null,null,null,null,null,null,null,null,null,null,649900,"Otras actividades de servicios financieros, excepto las de seguros y fondos de pensiones n.c.p."]
[null,null,null,null,null,null,null,null,null,null,651100,"Seguros de vida"]
[null,null,null,null,null,null,null,null,null,null,651210,"Seguros generales, excepto actividades de Isapres"]
[null,null,null,null,null,null,null,null,null,null,651220,"Actividades de Isapres"]
[null,null,null,null,null,null,null,null,null,null,652000,"Reaseguros"]
[null,null,null,null,null,null,null,null,null,null,653000,"Fondos de pensiones"]
[null,null,null,null,null,null,null,null,null,null,661100,"Administración de mercados financieros"]
[null,null,null,null,null,null,null,null,null,null,661201,"Actividades de securitizadoras"]
[null,null,null,null,null,null,null,null,null,null,661202,"Corredores de bolsa"]
[null,null,null,null,null,null,null,null,null,null,661203,"Agentes de valores"]
[null,null,null,null,null,null,null,null,null,null,661204,"Actividades de casas de cambio y operadores de divisa"]
[null,null,null,null,null,null,null,null,null,null,661209,"Otros servicios de corretaje de valores y commodities n.c.p."]
[null,null,null,null,null,null,null,null,null,null,661901,"Actividades de cámaras de compensación"]
[null,null,null,null,null,null,null,null,null,null,661902,"Administración de tarjetas de crédito"]
[null,null,null,null,null,null,null,null,null,null,661903,"Empresas de asesoría y consultoría en inversión financiera; sociedades de apoyo al giro"]
[null,null,null,null,null,null,null,null,null,null,661904,"Actividades de clasificadoras de riesgo"]
[null,null,null,null,null,null,null,null,null,null,661909,"Otras actividades auxiliares de las actividades de servicios financieros n.c.p."]
[null,null,null,null,null,null,null,null,null,null,662100,"Evaluación de riesgos y daños (incluye actividades de liquidadores de seguros)"]
[null,null,null,null,null,null,null,null,null,null,662200,"Actividades de agentes y corredores de seguros"]
[null,null,null,null,null,null,null,null,null,null,662900,"Otras actividades auxiliares de las actividades de seguros y fondos de pensiones"]
[null,null,null,null,null,null,null,null,null,null,663010,"Administradoras de Fondos de Pensiones (AFP)"]
[null,null,null,null,null,null,null,null,null,null,663091,"Administradoras de fondos de inversión"]
[null,null,null,null,null,null,null,null,null,null,663092,"Administradoras de fondos mutuos"]
[null,null,null,null,null,null,null,null,null,null,663093,"Administradoras de fices (fondos de inversión de capital extranjero)"]
[null,null,null,null,null,null,null,null,null,null,663094,"Administradoras de fondos para la vivienda"]
[null,null,null,null,null,null,null,null,null,null,663099,"Administradoras de fondos para otros fines n.c.p."]
[null,null,null,null,null,null,null,null,null,null,681011,"Alquiler de bienes inmuebles amoblados o con equipos y maquinarias"]
[null,null,null,null,null,null,null,null,null,null,681012,"Compra, venta y alquiler (excepto amoblados) de inmuebles"]
[null,null,null,null,null,null,null,null,null,null,681020,"Servicios imputados de alquiler de viviendas"]
[null,null,null,null,null,null,null,null,null,null,682000,"Actividades inmobiliarias realizadas a cambio de una retribución o por contrata"]
[null,null,null,null,null,null,null,null,null,null,691001,"Servicios de asesoramiento y representación jurídica"]
[null,null,null,null,null,null,null,null,null,null,691002,"Servicio notarial"]
[null,null,null,null,null,null,null,null,null,null,691003,"Conservador de bienes raíces"]
[null,null,null,null,null,null,null,null,null,null,691004,"Receptores judiciales"]
[null,null,null,null,null,null,null,null,null,null,691009,"Servicios de arbitraje; síndicos de quiebra y peritos judiciales; otras actividades jurídicas n.c.p."]
[null,null,null,null,null,null,null,null,null,null,692000,"Actividades de contabilidad, teneduría de libros y auditoría; consultoría fiscal"]
[null,null,null,null,null,null,null,null,null,null,701000,"Actividades de oficinas principales"]
[null,null,null,null,null,null,null,null,null,null,702000,"Actividades de consultoría de gestión"]
[null,null,null,null,null,null,null,null,null,null,711001,"Servicios de arquitectura (diseño de edificios, dibujo de planos de construcción, entre otros)"]
[null,null,null,null,null,null,null,null,null,null,711002,"Empresas de servicios de ingeniería y actividades conexas de consultoría técnica"]
[null,null,null,null,null,null,null,null,null,null,711003,"Servicios profesionales de ingeniería y actividades conexas de consultoría técnica"]
[null,null,null,null,null,null,null,null,null,null,712001,"Actividades de plantas de revisión técnica para vehículos automotores"]
[null,null,null,null,null,null,null,null,null,null,712009,"Otros servicios de ensayos y análisis técnicos (excepto actividades de plantas de revisión técnica)"]
[null,null,null,null,null,null,null,null,null,null,721000,"Investigaciones y desarrollo experimental en el campo de las ciencias naturales y la ingeniería"]
[null,null,null,null,null,null,null,null,null,null,722000,"Investigaciones y desarrollo experimental en el campo de las ciencias sociales y las humanidades"]
[null,null,null,null,null,null,null,null,null,null,731001,"Servicios de publicidad prestados por empresas"]
[null,null,null,null,null,null,null,null,null,null,731002,"Servicios de publicidad prestados por profesionales"]
[null,null,null,null,null,null,null,null,null,null,732000,"Estudios de mercado y encuestas de opinión pública"]
[null,null,null,null,null,null,null,null,null,null,741001,"Actividades de diseño de vestuario"]
[null,null,null,null,null,null,null,null,null,null,741002,"Actividades de diseño y decoración de interiores"]
[null,null,null,null,null,null,null,null,null,null,741009,"Otras actividades especializadas de diseño n.c.p."]
[null,null,null,null,null,null,null,null,null,null,742001,"Servicios de revelado, impresión y ampliación de fotografías"]
[null,null,null,null,null,null,null,null,null,null,742002,"Servicios y actividades de fotografía"]
[null,null,null,null,null,null,null,null,null,null,742003,"Servicios personales de fotografía"]
[null,null,null,null,null,null,null,null,null,null,749001,"Asesoría y gestión en la compra o venta de pequeñas y medianas empresas"]
[null,null,null,null,null,null,null,null,null,null,749002,"Servicios de traducción e interpretación prestados por empresas"]
[null,null,null,null,null,null,null,null,null,null,749003,"Servicios personales de traducción e interpretación"]
[null,null,null,null,null,null,null,null,null,null,749004,"Actividades de agencias y agentes de representación de actores, deportistas y otras figuras públicas"]
[null,null,null,null,null,null,null,null,null,null,749009,"Otras actividades profesionales, científicas y técnicas n.c.p."]
[null,null,null,null,null,null,null,null,null,null,750001,"Actividades de clínicas veterinarias"]
[null,null,null,null,null,null,null,null,null,null,750002,"Actividades de veterinarios, técnicos y otro personal auxiliar, prestados de forma independiente"]
[null,null,null,null,null,null,null,null,null,null,771000,"Alquiler de vehículos automotores sin chofer"]
[null,null,null,null,null,null,null,null,null,null,772100,"Alquiler y arrendamiento de equipo recreativo y deportivo"]
[null,null,null,null,null,null,null,null,null,null,772200,"Alquiler de cintas de video y discos"]
[null,null,null,null,null,null,null,null,null,null,772900,"Alquiler de otros efectos personales y enseres domésticos (incluye mobiliario para eventos)"]
[null,null,null,null,null,null,null,null,null,null,773001,"Alquiler de equipos de transporte sin operario, excepto vehículos automotores"]
[null,null,null,null,null,null,null,null,null,null,773002,"Alquiler de maquinaria y equipo agropecuario, forestal, de construcción e ing. civil, sin operarios"]
[null,null,null,null,null,null,null,null,null,null,773003,"Alquiler de maquinaria y equipo de oficina, sin operarios (sin servicio administrativo)"]
[null,null,null,null,null,null,null,null,null,null,773009,"Alquiler de otros tipos de maquinarias y equipos sin operario n.c.p."]
[null,null,null,null,null,null,null,null,null,null,774000,"Arrendamiento de propiedad intelectual y similares, excepto obras protegidas por derechos de autor"]
[null,null,null,null,null,null,null,null,null,null,781000,"Actividades de agencias de empleo"]
[null,null,null,null,null,null,null,null,null,null,782000,"Actividades de agencias de empleo temporal (incluye empresas de servicios transitorios)"]
[null,null,null,null,null,null,null,null,null,null,783000,"Otras actividades de dotación de recursos humanos"]
[null,null,null,null,null,null,null,null,null,null,791100,"Actividades de agencias de viajes"]
[null,null,null,null,null,null,null,null,null,null,791200,"Actividades de operadores turísticos"]
[null,null,null,null,null,null,null,null,null,null,799000,"Otros servicios de reservas y actividades conexas (incluye venta de entradas para teatro, y otros)"]
[null,null,null,null,null,null,null,null,null,null,801001,"Servicios de seguridad privada prestados por empresas"]
[null,null,null,null,null,null,null,null,null,null,801002,"Servicio de transporte de valores en vehículos blindados"]
[null,null,null,null,null,null,null,null,null,null,801003,"Servicios de seguridad privada prestados por independientes"]
[null,null,null,null,null,null,null,null,null,null,802000,"Actividades de servicios de sistemas de seguridad (incluye servicios de cerrajería)"]
[null,null,null,null,null,null,null,null,null,null,803000,"Actividades de investigación (incluye actividades de investigadores y detectives privados)"]
[null,null,null,null,null,null,null,null,null,null,811000,"Actividades combinadas de apoyo a instalaciones"]
[null,null,null,null,null,null,null,null,null,null,812100,"Limpieza general de edificios"]
[null,null,null,null,null,null,null,null,null,null,812901,"Desratización, desinfección y exterminio de plagas no agrícolas"]
[null,null,null,null,null,null,null,null,null,null,812909,"Otras actividades de limpieza de edificios e instalaciones industriales n.c.p."]
[null,null,null,null,null,null,null,null,null,null,813000,"Actividades de paisajismo, servicios de jardinería y servicios conexos"]
[null,null,null,null,null,null,null,null,null,null,821100,"Actividades combinadas de servicios administrativos de oficina"]
[null,null,null,null,null,null,null,null,null,null,821900,"Fotocopiado, preparación de documentos y otras actividades especializadas de apoyo de oficina"]
[null,null,null,null,null,null,null,null,null,null,822000,"Actividades de call-center"]
[null,null,null,null,null,null,null,null,null,null,823000,"Organización de convenciones y exposiciones comerciales"]
[null,null,null,null,null,null,null,null,null,null,829110,"Actividades de agencias de cobro"]
[null,null,null,null,null,null,null,null,null,null,829120,"Actividades de agencias de calificación crediticia"]
[null,null,null,null,null,null,null,null,null,null,829200,"Actividades de envasado y empaquetado"]
[null,null,null,null,null,null,null,null,null,null,829900,"Otras actividades de servicios de apoyo a las empresas n.c.p."]
[null,null,null,null,null,null,null,null,null,null,841100,"Actividades de la administración pública en general"]
[null,null,null,null,null,null,null,null,null,null,841200,"Regulación de las actividades de organismos que prestan servicios sanitarios, educativos, culturales"]
[null,null,null,null,null,null,null,null,null,null,841300,"Regulación y facilitación de la actividad económica"]
[null,null,null,null,null,null,null,null,null,null,842100,"Relaciones exteriores"]
[null,null,null,null,null,null,null,null,null,null,842200,"Actividades de defensa"]
[null,null,null,null,null,null,null,null,null,null,842300,"Actividades de mantenimiento del orden público y de seguridad"]
[null,null,null,null,null,null,null,null,null,null,843010,"Fondo Nacional de Salud (FONASA)"]
[null,null,null,null,null,null,null,null,null,null,843020,"Instituto de Previsión Social (IPS)"]
[null,null,null,null,null,null,null,null,null,null,843090,"Otros planes de seguridad social de afiliación obligatoria n.c.p."]
[null,null,null,null,null,null,null,null,null,null,850011,"Enseñanza preescolar pública"]
[null,null,null,null,null,null,null,null,null,null,850012,"Enseñanza primaria, secundaria científico humanista y técnico profesional pública"]
[null,null,null,null,null,null,null,null,null,null,850021,"Enseñanza preescolar privada"]
[null,null,null,null,null,null,null,null,null,null,850022,"Enseñanza primaria, secundaria científico humanista y técnico profesional privada"]
[null,null,null,null,null,null,null,null,null,null,853110,"Enseñanza superior en universidades públicas"]
[null,null,null,null,null,null,null,null,null,null,853120,"Enseñanza superior en universidades privadas"]
[null,null,null,null,null,null,null,null,null,null,853201,"Enseñanza superior en institutos profesionales"]
[null,null,null,null,null,null,null,null,null,null,853202,"Enseñanza superior en centros de formación técnica"]
[null,null,null,null,null,null,null,null,null,null,854100,"Enseñanza deportiva y recreativa"]
[null,null,null,null,null,null,null,null,null,null,854200,"Enseñanza cultural"]
[null,null,null,null,null,null,null,null,null,null,854901,"Enseñanza preuniversitaria"]
[null,null,null,null,null,null,null,null,null,null,854902,"Servicios personales de educación"]
[null,null,null,null,null,null,null,null,null,null,854909,"Otros tipos de enseñanza n.c.p."]
[null,null,null,null,null,null,null,null,null,null,855000,"Actividades de apoyo a la enseñanza"]
[null,null,null,null,null,null,null,null,null,null,861010,"Actividades de hospitales y clínicas públicas"]
[null,null,null,null,null,null,null,null,null,null,861020,"Actividades de hospitales y clínicas privadas"]
[null,null,null,null,null,null,null,null,null,null,862010,"Actividades de centros de salud municipalizados (servicios de salud pública)"]
[null,null,null,null,null,null,null,null,null,null,862021,"Centros médicos privados (establecimientos de atención ambulatoria)"]
[null,null,null,null,null,null,null,null,null,null,862022,"Centros de atención odontológica privados (establecimientos de atención ambulatoria)"]
[null,null,null,null,null,null,null,null,null,null,862031,"Servicios de médicos prestados de forma independiente"]
[null,null,null,null,null,null,null,null,null,null,862032,"Servicios de odontólogos prestados de forma independiente"]
[null,null,null,null,null,null,null,null,null,null,869010,"Actividades de laboratorios clínicos y bancos de sangre"]
[null,null,null,null,null,null,null,null,null,null,869091,"Otros servicios de atención de la salud humana prestados por empresas"]
[null,null,null,null,null,null,null,null,null,null,869092,"Servicios prestados de forma independiente por otros profesionales de la salud"]
[null,null,null,null,null,null,null,null,null,null,871000,"Actividades de atención de enfermería en instituciones"]
[null,null,null,null,null,null,null,null,null,null,872000,"Actividades de atención en instituciones para personas con discapacidad mental y toxicómanos"]
[null,null,null,null,null,null,null,null,null,null,873000,"Actividades de atención en instituciones para personas de edad y personas con discapacidad física"]
[null,null,null,null,null,null,null,null,null,null,879000,"Otras actividades de atención en instituciones"]
[null,null,null,null,null,null,null,null,null,null,881000,"Actividades de asistencia social sin alojamiento para personas de edad y personas con discapacidad"]
[null,null,null,null,null,null,null,null,null,null,889000,"Otras actividades de asistencia social sin alojamiento"]
[null,null,null,null,null,null,null,null,null,null,900001,"Servicios de producción de obras de teatro, conciertos, espectáculos de danza, otras prod. escénicas"]
[null,null,null,null,null,null,null,null,null,null,900002,"Actividades artísticas realizadas por bandas de música, compañías de teatro, circenses y similares"]
[null,null,null,null,null,null,null,null,null,null,900003,"Actividades de artistas realizadas de forma independiente: actores, músicos, escritores, entre otros"]
[null,null,null,null,null,null,null,null,null,null,900004,"Servicios prestados por periodistas independientes"]
[null,null,null,null,null,null,null,null,null,null,900009,"Otras actividades creativas, artísticas y de entretenimiento n.c.p."]
[null,null,null,null,null,null,null,null,null,null,910100,"Actividades de bibliotecas y archivos"]
[null,null,null,null,null,null,null,null,null,null,910200,"Actividades de museos, gestión de lugares y edificios históricos"]
[null,null,null,null,null,null,null,null,null,null,910300,"Actividades de jardines botánicos, zoológicos y reservas naturales"]
[null,null,null,null,null,null,null,null,null,null,920010,"Actividades de casinos de juegos"]
[null,null,null,null,null,null,null,null,null,null,920090,"Otras actividades de juegos de azar y apuestas n.c.p."]
[null,null,null,null,null,null,null,null,null,null,931101,"Hipódromos"]
[null,null,null,null,null,null,null,null,null,null,931102,"Gestión de salas de billar; gestión de salas de bolos (bowling)"]
[null,null,null,null,null,null,null,null,null,null,931109,"Gestión de otras instalaciones deportivas n.c.p."]
[null,null,null,null,null,null,null,null,null,null,931201,"Actividades de clubes de fútbol amateur y profesional"]
[null,null,null,null,null,null,null,null,null,null,931209,"Actividades de otros clubes deportivos n.c.p."]
[null,null,null,null,null,null,null,null,null,null,931901,"Promoción y organización de competencias deportivas"]
[null,null,null,null,null,null,null,null,null,null,931909,"Otras actividades deportivas n.c.p."]
[null,null,null,null,null,null,null,null,null,null,932100,"Actividades de parques de atracciones y parques temáticos"]
[null,null,null,null,null,null,null,null,null,null,932901,"Gestión de salas de pool; gestión (explotación) de juegos electrónicos"]
[null,null,null,null,null,null,null,null,null,null,932909,"Otras actividades de esparcimiento y recreativas n.c.p."]
[null,null,null,null,null,null,null,null,null,null,941100,"Actividades de asociaciones empresariales y de empleadores"]
[null,null,null,null,null,null,null,null,null,null,941200,"Actividades de asociaciones profesionales"]
[null,null,null,null,null,null,null,null,null,null,942000,"Actividades de sindicatos"]
[null,null,null,null,null,null,null,null,null,null,949100,"Actividades de organizaciones religiosas"]
[null,null,null,null,null,null,null,null,null,null,949200,"Actividades de organizaciones políticas"]
[null,null,null,null,null,null,null,null,null,null,949901,"Actividades de centros de madres"]
[null,null,null,null,null,null,null,null,null,null,949902,"Actividades de clubes sociales"]
[null,null,null,null,null,null,null,null,null,null,949903,"Fundaciones y corporaciones; asociaciones que promueven actividades culturales o recreativas"]
[null,null,null,null,null,null,null,null,null,null,949904,"Consejo de administración de edificios y condominios"]
[null,null,null,null,null,null,null,null,null,null,949909,"Actividades de otras asociaciones n.c.p."]
[null,null,null,null,null,null,null,null,null,null,951100,"Reparación de computadores y equipo periférico"]
[null,null,null,null,null,null,null,null,null,null,951200,"Reparación de equipo de comunicaciones (incluye la reparación teléfonos celulares)"]
[null,null,null,null,null,null,null,null,null,null,952100,"Reparación de aparatos electrónicos de consumo (incluye aparatos de televisión y radio)"]
[null,null,null,null,null,null,null,null,null,null,952200,"Reparación de aparatos de uso doméstico, equipo doméstico y de jardinería"]
[null,null,null,null,null,null,null,null,null,null,952300,"Reparación de calzado y de artículos de cuero"]
[null,null,null,null,null,null,null,null,null,null,952400,"Reparación de muebles y accesorios domésticos"]
[null,null,null,null,null,null,null,null,null,null,952900,"Reparación de otros efectos personales y enseres domésticos"]
[null,null,null,null,null,null,null,null,null,null,960100,"Lavado y limpieza, incluida la limpieza en seco, de productos textiles y de piel"]
[null,null,null,null,null,null,null,null,null,null,960200,"Peluquería y otros tratamientos de belleza"]
[null,null,null,null,null,null,null,null,null,null,960310,"Servicios funerarios"]
[null,null,null,null,null,null,null,null,null,null,960320,"Servicios de cementerios"]
[null,null,null,null,null,null,null,null,null,null,960901,"Servicios de adiestramiento, guardería, peluquería, paseo de mascotas (excepto act. veterinarias)"]
[null,null,null,null,null,null,null,null,null,null,960902,"Actividades de salones de masajes, baños turcos, saunas, servicio de baños públicos"]
[null,null,null,null,null,null,null,null,null,null,960909,"Otras actividades de servicios personales n.c.p."]
[null,null,null,null,null,null,null,null,null,null,970000,"Actividades de los hogares como empleadores de personal doméstico"]
[null,null,null,null,null,null,null,null,null,null,990000,"Actividades de organizaciones y órganos extraterritoriales"]